{"text_format":"1","workbook":"xlsx","n_sheets":12,"sheets":["EOP Order Form","ProductList","COMAND","Grigg Brothers","GV Water Soluables","Performance Nutritution","Lebanon","Venture Line","Brandt","Earthworks","Turf Protection","Adjuvants"],"not_rendered":{"charts":0,"images":3,"macros":1,"external_links":0,"defined_names":2,"comments":0,"pivot_tables":0},"unopened":[],"bounds":{"document_bytes":16777216,"sheet_cells":100000,"rows_first":2000,"rows_last":500,"rows_between":2000,"halvings":0,"cell_chars":16384,"cell_head_chars":4096},"cells_cut":0,"cells_raw":0,"read":"whole","date_system":"1900"}

{"sheet":"EOP Order Form","index":0,"n_rows":53,"n_cols":54,"rows_kept":53,"cut":false,"hidden":false,"merged":[[46,6,46,7],[47,6,47,7],[1,6,2,8],[3,7,3,8],[4,7,4,8],[5,7,5,8],[6,7,6,8],[7,7,7,8],[8,7,8,8],[9,7,9,8],[10,7,10,8],[11,7,11,8],[12,7,12,8],[5,1,5,2],[6,1,6,2],[7,1,7,2],[8,1,8,2],[45,6,45,7]]}
[]
[null,null,null,null,null,null,"Customer Information"]
[]
[null,null,null,null,null,null,"PO :"]
[null,null,null,null,null,null,"Name :"]
[null,"Golf Ventures",null,null,null,null,"Company Name :"]
[null,"5385 Gateway Blvd STE 12",null,null,null,null," Email :"]
[null,"Lakeland FL 33811",null,null,null,null,"Phone :"]
[null,"863-665-5800 | (866) 853-4653",null,null,null,null," Address 1 :"]
[null,null,null,null,null,null,"Address 2 :"]
[null,"Order No. :",null,null,null,null,"City :"]
[null,null,null,null,null,null,"State :"]
[null,"Order Date :",null,null,null,null,"Zip :"]
[]
[null,"Quantity","Vendor","Item","Description","Package Size","Price / UOM","UOM","Total",null,null,null,null,null,null,null,null,null,null,null,null,null,null,null,null,null,null,null,null,null,null,null,null,null,null,null,null,null,null,null,null,null,null,null,null,null,null,null,null,null,null,null,null,"Product ID"]
[null,null,null,{"$f":"IFERROR(INDEX(INDIRECT(\"'\"&$C16&\"'!\"&\"$B$9:$B$500\"),MATCH(RIGHT($BB16,10),INDIRECT(\"'\"&$C16&\"'!\"&\"$A$9:$A$500\"),0),),\"\")","v":""},{"$f":"IFERROR(INDEX(INDIRECT(\"'\"&$C16&\"'!\"&\"$D$9:$D$500\"),MATCH(RIGHT($BB16,10),INDIRECT(\"'\"&$C16&\"'!\"&\"$A$9:$A$500\"),0),),\"\")","v":""},{"$f":"IFERROR(INDEX(INDIRECT(\"'\"&$C16&\"'!\"&\"$C$9:$C$500\"),MATCH(RIGHT($BB16,10),INDIRECT(\"'\"&$C16&\"'!\"&\"$A$9:$A$500\"),0),),\"\")","v":""},{"$f":"IFERROR(INDEX(INDIRECT(\"'\"&$C16&\"'!\"&\"$E$9:$E$500\"),MATCH(RIGHT($BB16,10),INDIRECT(\"'\"&$C16&\"'!\"&\"$A$9:$A$500\"),0),),\"\")","v":""},{"$f":"IFERROR(INDEX(INDIRECT(\"'\"&$C16&\"'!\"&\"$F$9:$F$500\"),MATCH(RIGHT($BB16,10),INDIRECT(\"'\"&$C16&\"'!\"&\"$A$9:$A$500\"),0),),\"\")","v":""},{"$f":"IF(B16=\"\",\"\",(G16*B16))","v":""}]
[null,null,null,"","","","","",""]
[null,null,null,"","","","","",""]
[null,null,null,"","","","","",""]
[null,null,null,"","","","","",""]
[null,null,null,"","","","","",""]
[null,null,null,"","","","","",""]
[null,null,null,"","","","","",""]
[null,null,null,"","","","","",""]
[null,null,null,"","","","","",""]
[null,null,null,"","","","","",""]
[null,null,null,"","","","","",""]
[null,null,null,"","","","","",""]
[null,null,null,"","","","","",""]
[null,null,null,"","","","","",""]
[null,null,null,"","","","","",""]
[null,null,null,"","","","","",""]
[null,null,null,"","","","","",""]
[null,null,null,"","","","","",""]
[null,null,null,"","","","","",""]
[null,null,null,"","","","","",""]
[null,null,null,"","","","","",""]
[null,null,null,"","","","","",""]
[null,null,null,"","","","","",""]
[null,null,null,"","","","","",""]
[null,null,null,"","","","","",""]
[null,null,null,"","","","","",""]
[null,null,null,"","","","","",""]
[null,null,null,"","","","","",""]
[null,null,null,"","","","","",""]
[null,null,null,null,null,null,"Total :",null,{"$f":"IF(COUNTA($I$16:$I$45)=0,\"\",SUM($I$16:$I$45))","v":0}]
[null,null,null,null,null,null,"EOP Refund :",null,{"$f":"IF(I46=\"\",\"\",IF(AND(I46>=7501,I46<=15000),(I46*5%),IF(AND(I46<=7500,I46>=3500),(I46*3%),IF(AND(I46<=3499,I46>=0),(I46*0),(I46*7%)))))","v":0}]
[null,null,null,null,null,null,"Rebate Level :",null,{"$f":"IF(OR(I46=\"\",I46=0),\"\",IF(AND(I46>=9990001,I46<=9990003),\"x%\",IF(AND(I46>=7501,I46<=15000),\"5%\",IF(AND(I46<=7500,I46>=3500),\"3%\",IF(AND(I46<=3499,I46>=0),\"NA\",\"7%\")))))","v":""}]
[]
[null,"1. Earn Credits for program purchases. Credit can be used to purchase any product sold by Golf Ventures including accessories, fertilizer, chemical, and specially foliar lines."]
[null,"2. Minimum purchase to quality for credit is $3500. $3500-$7500 - 3%  $7501-$15,000-5%  $15,001 and higher 7%."]
[null,"3. Total cumulative purchases from August 17 through November 15, 2020 after the initial buy in will count toward increasing credit structure."]
[null,"4. Payment terms until March 1,2021  Payment within 30 days of order during the program will result in an extra percentage point in credit."]

{"sheet":"ProductList","index":1,"n_rows":401,"n_cols":8,"rows_kept":401,"cut":false,"hidden":true,"merged":[]}
[]
["Adjuvants","AB_WAP-001","80/20 Select™","80% Nonionic Surfactant","2 x 2.5 Gallon","80/20 Select™ | 80% Nonionic Surfactant | 2 x 2.5 Gallon                                                                                                     | AB_WAP-001",19.7,"Gallon"]
["Adjuvants","AB_WAP-002","Defoamer Select™","Defoamer","12x1 Quart","Defoamer Select™ | Defoamer | 12x1 Quart                                                                                                     | AB_WAP-002",160.19999999999999,"Case"]
["Adjuvants","AB_WAP-003","Duo Stick Select™","MSO + Organosilicone Blend","2 x 2.5 Gallon","Duo Stick Select™ | MSO + Organosilicone Blend | 2 x 2.5 Gallon                                                                                                     | AB_WAP-003",88.45,"Jug"]
["Adjuvants","AB_WAP-004","Foam Marker Select™","Foam Marker","12x1 Quart","Foam Marker Select™ | Foam Marker | 12x1 Quart                                                                                                     | AB_WAP-004",197.14,"Case"]
["Adjuvants","AB_WAP-005","Masking Agent Select™","Masking Agent (Winter Green)","12x1 Quart","Masking Agent Select™ | Masking Agent (Winter Green) | 12x1 Quart                                                                                                     | AB_WAP-005",420,"Case"]
["Adjuvants","AB_WAP-006","MSO Select™","Methylated Seed Oil","2 x 2.5 Gallon","MSO Select™ | Methylated Seed Oil | 2 x 2.5 Gallon                                                                                                     | AB_WAP-006",64.25,"Jug"]
["Adjuvants","AB_WAP-007","PS 804 Select™","Similar to LI 700®","2 x 2.5 Gallon","PS 804 Select™ | Similar to LI 700® | 2 x 2.5 Gallon                                                                                                     | AB_WAP-007",75,"Jug"]
["Adjuvants","AB_WAP-008","Tank Cleaner Select™","Tank Cleaner","12x1 Quart","Tank Cleaner Select™ | Tank Cleaner | 12x1 Quart                                                                                                     | AB_WAP-008",157.19999999999999,"Case"]
["Adjuvants","AB_WAP-009","TPC - Turf Tech Turf Pigment Cleaner ","Turf Colorant Cleaner/Remover","12x16 Oz","TPC - Turf Tech Turf Pigment Cleaner  | Turf Colorant Cleaner/Remover | 12x16 Oz                                                                                                     | AB_WAP-009",144,"Case"]
["Adjuvants","AB_WAP-010","Triple Max Select™","H20 Conditioner/Acidifer/Surfactant","4 x 1 Gallon","Triple Max Select™ | H20 Conditioner/Acidifer/Surfactant | 4 x 1 Gallon                                                                                                     | AB_WAP-010",37.85,"Gallon"]
["Adjuvants","AB_WAP-011","Turf Tech MPC","Multi-Purpose Cleaner","12x16 Oz","Turf Tech MPC | Multi-Purpose Cleaner | 12x16 Oz                                                                                                     | AB_WAP-011",59,"Case"]
["Adjuvants","AB_WAP-012","Turf Tech Tank Wash","Tank Cleaner","2 x 2.5 Gallon","Turf Tech Tank Wash | Tank Cleaner | 2 x 2.5 Gallon                                                                                                     | AB_WAP-012",157.19999999999999,"Case"]
["Adjuvants","AB_WAP-013","Venture AMS 80/20 Surfactant","80% Nonionic Surfactant","4 x 1 Gallon","Venture AMS 80/20 Surfactant | 80% Nonionic Surfactant | 4 x 1 Gallon                                                                                                     | AB_WAP-013",17,"Gallon"]
["Adjuvants","AB_WAP-014","Venture Clean Tank Cleaner","Tank Cleaner","12 x 1 Quart","Venture Clean Tank Cleaner | Tank Cleaner | 12 x 1 Quart                                                                                                     | AB_WAP-014",120,"Case"]
["Adjuvants","AB_WAP-015","Venture Foam Buster","Defoamer","12 x 1 Quart","Venture Foam Buster | Defoamer | 12 x 1 Quart                                                                                                     | AB_WAP-015",120,"Case"]
["Adjuvants","AB_WAP-016","Venture Foamy ","Foam Marker","12 x 1 Quart","Venture Foamy  | Foam Marker | 12 x 1 Quart                                                                                                     | AB_WAP-016",100.25,"Case"]
["Adjuvants","AB_WAP-017","Venture Foamy ","Foam Marker","4 x 1 Gallon","Venture Foamy  | Foam Marker | 4 x 1 Gallon                                                                                                     | AB_WAP-017",104.3,"Gallon"]
["Adjuvants","AB_WAP-018","Venture pHase","pH Spray Tank Conditioner","4 x 1 Gallon","Venture pHase | pH Spray Tank Conditioner | 4 x 1 Gallon                                                                                                     | AB_WAP-018",22.85,"Gallon"]
["Adjuvants","AB_WAP-019","Venture Applicator","Hose End Applicator","Each","Venture Applicator | Hose End Applicator | Each                                                                                                     | AB_WAP-019",108,"Each"]
["Adjuvants","AB_WAP-020","Venture Catalyst ","Non-Ionic Surfactant with AMS","4 x 1 Gallon","Venture Catalyst  | Non-Ionic Surfactant with AMS | 4 x 1 Gallon                                                                                                     | AB_WAP-020",17,"Gallon"]
["Adjuvants","AB_WAP-021","Venture Cure","30 day Wetting Agent","2 x 2.5 Gallon","Venture Cure | 30 day Wetting Agent | 2 x 2.5 Gallon                                                                                                     | AB_WAP-021",200,"Jug"]
["Adjuvants","AB_WAP-022","Venture Cure ","30 day Wetting Agent","30 Gallon Drum","Venture Cure  | 30 day Wetting Agent | 30 Gallon Drum                                                                                                     | AB_WAP-022",54.25,"Gallon"]
["Adjuvants","AB_WAP-023","Venture Cure ","30 day Wetting Agent","55 Gallon Drum","Venture Cure  | 30 day Wetting Agent | 55 Gallon Drum                                                                                                     | AB_WAP-023",54.25,"Gallon"]
["Adjuvants","AB_WAP-024","Venture Dew Down ","Dew Prevention","4 x 1 Gallon","Venture Dew Down  | Dew Prevention | 4 x 1 Gallon                                                                                                     | AB_WAP-024",41.1,"Gallon"]
["Adjuvants","AB_WAP-025","Venture Hume Tablets","Humic Acid Infused Wetting Tablet","6 x 8 Ounce","Venture Hume Tablets | Humic Acid Infused Wetting Tablet | 6 x 8 Ounce                                                                                                     | AB_WAP-025",130,"Box"]
["Adjuvants","AB_WAP-026","Venture Hume Tablets ","Humic Acid Infused Wetting Tablet","7 Pounds","Venture Hume Tablets  | Humic Acid Infused Wetting Tablet | 7 Pounds                                                                                                     | AB_WAP-026",96.92,"Each"]
["Adjuvants","AB_WAP-027","Venture Kelp Tablets ","Kelp Extract  Infused Wetting Tablet","6 x 8oz Box","Venture Kelp Tablets  | Kelp Extract  Infused Wetting Tablet | 6 x 8oz Box                                                                                                     | AB_WAP-027",97.15,"Box"]
["Adjuvants","AB_WAP-028","Venture Relief ","Salt Renediation Liquid","2.5 Gallon","Venture Relief  | Salt Renediation Liquid | 2.5 Gallon                                                                                                     | AB_WAP-028",153.84,"Jug"]
["Adjuvants","AB_WAP-029","Venture Repair Kit","Hose End Applicator Repair","Each","Venture Repair Kit | Hose End Applicator Repair | Each                                                                                                     | AB_WAP-029",32.29,"Each"]
["Adjuvants","AB_WAP-030","Venture Sixty (2.5 Gal Jug)","60 day Wetting Agent","2.5 Gallon","Venture Sixty (2.5 Gal Jug) | 60 day Wetting Agent | 2.5 Gallon                                                                                                     | AB_WAP-030",230,"Jug"]
["Adjuvants","AB_WAP-031","Venture Sixty (55 Gal Drum)","60 day Wetting Agent","55 Gallon Drum","Venture Sixty (55 Gal Drum) | 60 day Wetting Agent | 55 Gallon Drum                                                                                                     | AB_WAP-031",4858.3,"Drum"]
["Adjuvants","AB_WAP-032","Venture Stress Relief Tablets ","Amino Acid Infused Wetting Tablet","6 x 8 Ounce","Venture Stress Relief Tablets  | Amino Acid Infused Wetting Tablet | 6 x 8 Ounce                                                                                                     | AB_WAP-032",97.2,"Box"]
["Adjuvants","AB_WAP-033","Venture Wet (2.5 Gal Jug)","Multi-Purpose Wetting Agent","2.5 Gallon","Venture Wet (2.5 Gal Jug) | Multi-Purpose Wetting Agent | 2.5 Gallon                                                                                                     | AB_WAP-033",75,"Jug"]
["Adjuvants","AB_WAP-034","Venture Wet (275 Gal Tote)(Gal)","Multi-Purpose Wetting Agent","275 Gallon Tote","Venture Wet (275 Gal Tote)(Gal) | Multi-Purpose Wetting Agent | 275 Gallon Tote                                                                                                     | AB_WAP-034",22,"Gallon"]
["Adjuvants","AB_WAP-035","Venture Wet (30 Gal Drum)","Multi-Purpose Wetting Agent","30 Gallon Drum","Venture Wet (30 Gal Drum) | Multi-Purpose Wetting Agent | 30 Gallon Drum                                                                                                     | AB_WAP-035",765,"Drum"]
["Adjuvants","AB_WAP-036","Venture Wet (55 Gal Drum)","Multi-Purpose Wetting Agent","55 Gallon Drum","Venture Wet (55 Gal Drum) | Multi-Purpose Wetting Agent | 55 Gallon Drum                                                                                                     | AB_WAP-036",1335,"Drum"]
["Adjuvants","AB_WAP-037","Venture Wet (7 Lb Tablet)","Multi-Purpose Wetting Agent","7 Pounds","Venture Wet (7 Lb Tablet) | Multi-Purpose Wetting Agent | 7 Pounds                                                                                                     | AB_WAP-037",93.85,"Each"]
["Adjuvants","AB_WAP-038","Venture Wet Granular (50 Lb Bag)","Multi-Purpose Wetting Agent","50 LB Bag","Venture Wet Granular (50 Lb Bag) | Multi-Purpose Wetting Agent | 50 LB Bag                                                                                                     | AB_WAP-038",134,"Bag"]
["Adjuvants","AB_WAP-039","Venture Wet Tablets (6x8oz)(Box)","Multi-Purpose Wetting Agent","6 x 8 Ounce","Venture Wet Tablets (6x8oz)(Box) | Multi-Purpose Wetting Agent | 6 x 8 Ounce                                                                                                     | AB_WAP-039",104.6,"Box"]
["Adjuvants","AB_WAP-040","Tee Time Select™","Green Pigment","1 Gallon","Tee Time Select™ | Green Pigment | 1 Gallon                                                                                                     | AB_WAP-040",135.35,"Gallon"]
["Adjuvants","AB_WAP-041","Turf Marker Blue SC","Concentrated Blue Turf marker","1 Gallon","Turf Marker Blue SC | Concentrated Blue Turf marker | 1 Gallon                                                                                                     | AB_WAP-041",56.6,"Gallon"]
["Adjuvants","AB_WAP-042","Turf Marker Blue Select™","Blue Turf Marker","1 Gallon","Turf Marker Blue Select™ | Blue Turf Marker | 1 Gallon                                                                                                     | AB_WAP-042",34.5,"Gallon"]
["Adjuvants","AB_WAP-043","Turf Marker Blue WSB ","Blue Turf Marker","10x2 Oz","Turf Marker Blue WSB  | Blue Turf Marker | 10x2 Oz                                                                                                     | AB_WAP-043",44.6,"Bag"]
["Adjuvants","AB_WAP-044","Turf Marker Green Select ™","Green Turf Marker","1 Gallon","Turf Marker Green Select ™ | Green Turf Marker | 1 Gallon                                                                                                     | AB_WAP-044",37,"Gallon"]
["Adjuvants","AB_WAP-045","Venture Green Complete","Turf Pigment and Paint Crossover","4 x 1 Gallon","Venture Green Complete | Turf Pigment and Paint Crossover | 4 x 1 Gallon                                                                                                     | AB_WAP-045",107,"Gallon"]
["Adjuvants","AB_WAP-046","Venture Green Complete","Turf Pigment and Paint Crossover","55 Gallon Drum","Venture Green Complete | Turf Pigment and Paint Crossover | 55 Gallon Drum                                                                                                     | AB_WAP-046",100,"Gallon"]
["Adjuvants","AB_WAP-047","Venture Renew Brown ","Pine Straw/Mulch colorant","12 x 1 Quart","Venture Renew Brown  | Pine Straw/Mulch colorant | 12 x 1 Quart                                                                                                     | AB_WAP-047",212.4,"Case"]
["Adjuvants","AB_WAP-048","Venture Renew Brown ","Pine Straw/Mulch colorant","2.5 Gallon","Venture Renew Brown  | Pine Straw/Mulch colorant | 2.5 Gallon                                                                                                     | AB_WAP-048",145,"Jug"]
["Adjuvants","AB_WAP-049","Venture Renew Red ","Pine Straw/Mulch colorant","12 x 1 Quart","Venture Renew Red  | Pine Straw/Mulch colorant | 12 x 1 Quart                                                                                                     | AB_WAP-049",212.4,"Case"]
["Adjuvants","AB_WAP-050","Venture Renew Red ","Pine Straw/Mulch colorant","2.5 Gallon","Venture Renew Red  | Pine Straw/Mulch colorant | 2.5 Gallon                                                                                                     | AB_WAP-050",145,"Jug"]
["Adjuvants","AB_WAP-051","Venture Revitalize","Turf Pigment","55 Gallon Drum","Venture Revitalize | Turf Pigment | 55 Gallon Drum                                                                                                     | AB_WAP-051",5415.38,"Drum"]
["Adjuvants","AB_WAP-052","Venture Revitalize ","Turf Pigment","30 Gallon Drum","Venture Revitalize  | Turf Pigment | 30 Gallon Drum                                                                                                     | AB_WAP-052",2953.85,"Drum"]
["Adjuvants","AB_WAP-053","Venture Revitalize ","Turf Pigment","4 x 1 Gallon","Venture Revitalize  | Turf Pigment | 4 x 1 Gallon                                                                                                     | AB_WAP-053",90,"Gallon"]
["Adjuvants","AB_WAP-054","Venture SPI Green ","Green Turf Marker","4 x 1 Gallon","Venture SPI Green  | Green Turf Marker | 4 x 1 Gallon                                                                                                     | AB_WAP-054",369.25,"Gallon"]
["Adjuvants","AB_WAP-055","Venture TP","Premium Turf Paiint","4 x 1 Gallon","Venture TP | Premium Turf Paiint | 4 x 1 Gallon                                                                                                     | AB_WAP-055",56.6,"Gallon"]
["Adjuvants","AB_WAP-056","Ventures Alert - Tracer Blue ","Spray Pattern Indicator","12 x 1 Quart","Ventures Alert - Tracer Blue  | Spray Pattern Indicator | 12 x 1 Quart                                                                                                     | AB_WAP-056",232.85,"Case"]
["Adjuvants","AB_WAP-057","Ventures Alert - Tracer Red","Spray Pattern Indicator","12 x 1 Quart","Ventures Alert - Tracer Red | Spray Pattern Indicator | 12 x 1 Quart                                                                                                     | AB_WAP-057",214.9,"Case"]
["Adjuvants","AB_WAP-058","Venture CaConditioner ","Liquid Gypsum Substitute","2 x 2.5 Gallon","Venture CaConditioner  | Liquid Gypsum Substitute | 2 x 2.5 Gallon                                                                                                     | AB_WAP-058",46.25,"Jug"]
["Adjuvants","AB_WAP-059","Venture Ca Conditioner ","Liquid Gypsum Substitute","265 Gallon Tote","Venture Ca Conditioner  | Liquid Gypsum Substitute | 265 Gallon Tote                                                                                                     | AB_WAP-059",18.5,"Gallon"]
["Adjuvants","AB_WAP-060","Aqua Blue Select™","Blue Pond Dye","1 Gallon","Aqua Blue Select™ | Blue Pond Dye | 1 Gallon                                                                                                     | AB_WAP-060",32.200000000000003,"Gallon"]
["Adjuvants","AB_WAP-061","Aqua Black Select™","Black Pond Dye","1 Gallon","Aqua Black Select™ | Black Pond Dye | 1 Gallon                                                                                                     | AB_WAP-061",83.3,"Gallon"]
["Brandt","BR_WAP-001","Summer Success Program ","Nutritional Program for Greens","13 Cases","Summer Success Program  | Nutritional Program for Greens | 13 Cases                                                                                                     | BR_WAP-001",1250,"Kit"]
["Brandt","BR_WAP-002","Mega-Summer Success Program ","Nutritional Program for Greens + iHammer Megalex","16 Cases","Mega-Summer Success Program  | Nutritional Program for Greens + iHammer Megalex | 16 Cases                                                                                                     | BR_WAP-002",1995,"Kit"]
["Brandt","BR_WAP-003","Winter Success Program","Nutritional Program for Greens","13 Cases","Winter Success Program | Nutritional Program for Greens | 13 Cases                                                                                                     | BR_WAP-003",1250,"Kit"]
["Brandt","BR_WAP-004","Bi-Monthly Success Program","Nutritional Program for Greens","20 Cases","Bi-Monthly Success Program | Nutritional Program for Greens | 20 Cases                                                                                                     | BR_WAP-004",1650,"Kit"]
["Brandt","BR_WAP-005","Nematode Kit","8 month control for 3 acres","15 Cases","Nematode Kit | 8 month control for 3 acres | 15 Cases                                                                                                     | BR_WAP-005",2600,"Kit"]
["Brandt","BR_WAP-006","Manni Plex Foli-Cal","5% N 10% Ca","2x2.5 Gallon","Manni Plex Foli-Cal | 5% N 10% Ca | 2x2.5 Gallon                                                                                                     | BR_WAP-006",130.5,"Case"]
["Brandt","BR_WAP-007","Manni-Plex Cal Mg","7% N, 5.3% Ca, 2.6% Mg","2x2.5 Gallon","Manni-Plex Cal Mg | 7% N, 5.3% Ca, 2.6% Mg | 2x2.5 Gallon                                                                                                     | BR_WAP-007",117.5,"Case"]
["Brandt","BR_WAP-008","Manni-Plex Cal Zn","6% N, 6% Ca, 35 Zn","2x2.5 Gallon","Manni-Plex Cal Zn | 6% N, 6% Ca, 35 Zn | 2x2.5 Gallon                                                                                                     | BR_WAP-008",132.5,"Case"]
["Brandt","BR_WAP-009","Manni-Plex Eagle","7% N, 14% K2O, 0.5% Mg, 0.5% Fe, 0.25% Mn","2x2.5 Gallon","Manni-Plex Eagle | 7% N, 14% K2O, 0.5% Mg, 0.5% Fe, 0.25% Mn | 2x2.5 Gallon                                                                                                     | BR_WAP-009",162.5,"Case"]
["Brandt","BR_WAP-010","Manni-Plex Fe","5% N, 5% Fe","2x2.5 Gallon","Manni-Plex Fe | 5% N, 5% Fe | 2x2.5 Gallon                                                                                                     | BR_WAP-010",113,"Case"]
["Brandt","BR_WAP-011","Manni-Plex Grow","12% N, 6% K2O, 0.25% Mg, 0.12% Cu, 1% Fe, 0.25% Mn, 0.25% Zn","2x2.5 Gallon","Manni-Plex Grow | 12% N, 6% K2O, 0.25% Mg, 0.12% Cu, 1% Fe, 0.25% Mn, 0.25% Zn | 2x2.5 Gallon                                                                                                     | BR_WAP-011",152.5,"Case"]
["Brandt","BR_WAP-012","Manni-Plex K","20% K20","2x2.5 Gallon","Manni-Plex K | 20% K20 | 2x2.5 Gallon                                                                                                     | BR_WAP-012",144,"Case"]
["Brandt","BR_WAP-013","Manni-Plex Mg","5% N, 4% Mg","2x2.5 Gallon","Manni-Plex Mg | 5% N, 4% Mg | 2x2.5 Gallon                                                                                                     | BR_WAP-013",114.5,"Case"]
["Brandt","BR_WAP-014","Manni-Plex Mn","7% N, 5% Mn","2x2.5 Gallon","Manni-Plex Mn | 7% N, 5% Mn | 2x2.5 Gallon                                                                                                     | BR_WAP-014",122,"Case"]
["Brandt","BR_WAP-015","Manni-Plex Si","1% Fe, 10% SiO2","2x2.5 Gallon","Manni-Plex Si | 1% Fe, 10% SiO2 | 2x2.5 Gallon                                                                                                     | BR_WAP-015",480,"Case"]
["Brandt","BR_WAP-016","Manni-Plex For Ornamentals","5% N, 2.5% B, 1% Fe, 2.5% Mn, 2% Zn","2x2.5 Gallon","Manni-Plex For Ornamentals | 5% N, 2.5% B, 1% Fe, 2.5% Mn, 2% Zn | 2x2.5 Gallon                                                                                                     | BR_WAP-016",120,"Case"]
["Brandt","BR_WAP-017","Manni-Plex Root Builder","3% N, 0.5% Mg, 0.2% B, 0.05% Cu, 0.9% Mn, 4.7% Zn","2x2.5 Gallon","Manni-Plex Root Builder | 3% N, 0.5% Mg, 0.2% B, 0.05% Cu, 0.9% Mn, 4.7% Zn | 2x2.5 Gallon                                                                                                     | BR_WAP-017",152.5,"Case"]
["Brandt","BR_WAP-018","Manni-Plex Total Turf","5% N, 1.2% Mg, 2.85% Fe, 0.45% Mn, 0.65% Zn","2x2.5 Gallon","Manni-Plex Total Turf | 5% N, 1.2% Mg, 2.85% Fe, 0.45% Mn, 0.65% Zn | 2x2.5 Gallon                                                                                                     | BR_WAP-018",162.5,"Case"]
["Brandt","BR_WAP-019","Manni-Plex Traffic 0-0-6 + Si","6% K2O plus 5% Silicon","2x2.5 Gallon","Manni-Plex Traffic 0-0-6 + Si | 6% K2O plus 5% Silicon | 2x2.5 Gallon                                                                                                     | BR_WAP-019",157.5,"Case"]
["Brandt","BR_WAP-020","Manni-Plex Ultra Turf","4% N, 2% K2O, 0.5% Mg, 0.25% B, 0.5% Cu, 2% Fe, 0.5% Mn, 0.25% Mo","2x2.5 Gallon","Manni-Plex Ultra Turf | 4% N, 2% K2O, 0.5% Mg, 0.25% B, 0.5% Cu, 2% Fe, 0.5% Mn, 0.25% Mo | 2x2.5 Gallon                                                                                                     | BR_WAP-020",152.5,"Case"]
["Brandt","BR_WAP-021","Manni-Plex Zn","3% N, 7% Zn","2x2.5 Gallon","Manni-Plex Zn | 3% N, 7% Zn | 2x2.5 Gallon                                                                                                     | BR_WAP-021",144,"Case"]
["Brandt","BR_WAP-022","Megalex 3-0-0","Promotes stronger, healthier greens","2x2.5 Gallon","Megalex 3-0-0 | Promotes stronger, healthier greens | 2x2.5 Gallon                                                                                                     | BR_WAP-022",250,"Case"]
["Brandt","BR_WAP-023","Upplause Plus 10-0-0","Stress prevention and relief","2x2.5 Gallon","Upplause Plus 10-0-0 | Stress prevention and relief | 2x2.5 Gallon                                                                                                     | BR_WAP-023",220,"Case"]
["Brandt","BR_WAP-024","Advantage MicroPlus 5-0-1","Macro and micronutrients","2x2.5 Gallon","Advantage MicroPlus 5-0-1 | Macro and micronutrients | 2x2.5 Gallon                                                                                                     | BR_WAP-024",245,"Case"]
["Brandt","BR_WAP-025","Agra Sol Micro Max","5%Mg, 0.5%B, 1.5%Cu, 4%Fe, 4%Mn, 0.1%Mo, 1.5%Zn","10 lb Bag","Agra Sol Micro Max | 5%Mg, 0.5%B, 1.5%Cu, 4%Fe, 4%Mn, 0.1%Mo, 1.5%Zn | 10 lb Bag                                                                                                     | BR_WAP-025",26.4,"Bag"]
["Brandt","BR_WAP-026","Agra Sol Turf Mix","4% Mg, 0.5% B, 2% Fe, 2% Mn, 0.5% Zn","10 lb Bag","Agra Sol Turf Mix | 4% Mg, 0.5% B, 2% Fe, 2% Mn, 0.5% Zn | 10 lb Bag                                                                                                     | BR_WAP-026",33,"Bag"]
["Brandt","BR_WAP-027","Brandt 20-K","Urea plus Potassium Acetate","2x2.5 Gallon","Brandt 20-K | Urea plus Potassium Acetate | 2x2.5 Gallon                                                                                                     | BR_WAP-027",150,"Case"]
["Brandt","BR_WAP-028","Brandt 30-K","30% K2O","2x2.5 Gallon","Brandt 30-K | 30% K2O | 2x2.5 Gallon                                                                                                     | BR_WAP-028",152.5,"Case"]
["Brandt","BR_WAP-029","Brandt Converge 12-0-12","12%N, 12%K, 0.5% Fe, 0.4% Mn","2x2.5 Gallon","Brandt Converge 12-0-12 | 12%N, 12%K, 0.5% Fe, 0.4% Mn | 2x2.5 Gallon                                                                                                     | BR_WAP-029",130,"Case"]
["Brandt","BR_WAP-030","Brandt Converge 18-3-6","18% N, 3% P2O5, 6% K2O, 0.05% Cu, 0.1% Fe, 0.05% Mn, Zn (50% SRN)","2x2.5 Gallon","Brandt Converge 18-3-6 | 18% N, 3% P2O5, 6% K2O, 0.05% Cu, 0.1% Fe, 0.05% Mn, Zn (50% SRN) | 2x2.5 Gallon                                                                                                     | BR_WAP-030",105,"Case"]
["Brandt","BR_WAP-031","Brandt Converge 18-0-6","18%N, 6%K, 0.05%Cu, 0.1%Fe, 0.05%Mn, 0.05%Zn (50%SRN) ","2x2.5 Gallon","Brandt Converge 18-0-6 | 18%N, 6%K, 0.05%Cu, 0.1%Fe, 0.05%Mn, 0.05%Zn (50%SRN)  | 2x2.5 Gallon                                                                                                     | BR_WAP-031",95,"Case"]
["Brandt","BR_WAP-032","Brandt Converge SRN","30% N (70% SRN)","2x2.5 Gallon","Brandt Converge SRN | 30% N (70% SRN) | 2x2.5 Gallon                                                                                                     | BR_WAP-032",95,"Case"]
["Brandt","BR_WAP-033","Brandt Supreme Green","12-0-0     0.25% Mg, 5% S, 6% Fe, 2% Mn","2x2.5 Gallon","Brandt Supreme Green | 12-0-0     0.25% Mg, 5% S, 6% Fe, 2% Mn | 2x2.5 Gallon                                                                                                     | BR_WAP-033",105,"Case"]
["Brandt","BR_WAP-034","Brandt Organiplex 8% Ca","8% Ca","2x2.5 Gallon","Brandt Organiplex 8% Ca | 8% Ca | 2x2.5 Gallon                                                                                                     | BR_WAP-034",199.5,"Case"]
["Brandt","BR_WAP-035","Brandt Organiplex 3% Mg","3% Mg, 0.25% B","2x2.5 Gallon","Brandt Organiplex 3% Mg | 3% Mg, 0.25% B | 2x2.5 Gallon                                                                                                     | BR_WAP-035",199.5,"Case"]
["Brandt","BR_WAP-036","Brandt Organiplex 4% Mn","4% Mn, 0.25% B","2x2.5 Gallon","Brandt Organiplex 4% Mn | 4% Mn, 0.25% B | 2x2.5 Gallon                                                                                                     | BR_WAP-036",199.5,"Case"]
["Brandt","BR_WAP-037","Brandt Organiplex 6% Zn","6% Zn","2x2.5 Gallon","Brandt Organiplex 6% Zn | 6% Zn | 2x2.5 Gallon                                                                                                     | BR_WAP-037",199.5,"Case"]
["Brandt","BR_WAP-038","Brandt Organiplex Micro Max","2% Fe, 2% Mn, 2% Zn","2x2.5 Gallon","Brandt Organiplex Micro Max | 2% Fe, 2% Mn, 2% Zn | 2x2.5 Gallon                                                                                                     | BR_WAP-038",199.5,"Case"]
["Brandt","BR_WAP-039","MKS","Liquid Sul-Po-Mag","2x2.5 Gallon","MKS | Liquid Sul-Po-Mag | 2x2.5 Gallon                                                                                                     | BR_WAP-039",69.5,"Case"]
["Brandt","BR_WAP-040","MKS","Liquid Sul-Po-Mag","250 Gallon ","MKS | Liquid Sul-Po-Mag | 250 Gallon                                                                                                      | BR_WAP-040",3225,"Tote"]
["Brandt","BR_WAP-041","Sequestar® 3% Ca ","3% Ca - EDTA Liquid ","2x2.5 Gallon","Sequestar® 3% Ca  | 3% Ca - EDTA Liquid  | 2x2.5 Gallon                                                                                                     | BR_WAP-041",50,"Case"]
["Brandt","BR_WAP-042","Sequestar® 7.5% Cu ","7.5% Cu Solution EDTA Liquid","2x2.5 Gallon","Sequestar® 7.5% Cu  | 7.5% Cu Solution EDTA Liquid | 2x2.5 Gallon                                                                                                     | BR_WAP-042",100,"Case"]
["Brandt","BR_WAP-043","Sequestar® 4.5% Fe ","4.5% Fe - EDTA Liquid","2x2.5 Gallon","Sequestar® 4.5% Fe  | 4.5% Fe - EDTA Liquid | 2x2.5 Gallon                                                                                                     | BR_WAP-043",65,"Case"]
["Brandt","BR_WAP-044","Sequestar 4.5%Fe ","4.5%Fe HEDTA Liquid","2x2.5 Gallon","Sequestar 4.5%Fe  | 4.5%Fe HEDTA Liquid | 2x2.5 Gallon                                                                                                     | BR_WAP-044",125,"Case"]
["Brandt","BR_WAP-045","Sequestar® 2.5 Mg ","2.5 Mg Solution EDTA Liquid","2x2.5 Gallon","Sequestar® 2.5 Mg  | 2.5 Mg Solution EDTA Liquid | 2x2.5 Gallon                                                                                                     | BR_WAP-045",51.5,"Case"]
["Brandt","BR_WAP-046","Sequestar® 5% Mn ","5% Mn Solution EDTA Liquid","2x2.5 Gallon","Sequestar® 5% Mn  | 5% Mn Solution EDTA Liquid | 2x2.5 Gallon                                                                                                     | BR_WAP-046",68,"Case"]
["Brandt","BR_WAP-047","Sequestar® 9% Zn ","9% Zn - EDTA Liquid","2x2.5 Gallon","Sequestar® 9% Zn  | 9% Zn - EDTA Liquid | 2x2.5 Gallon                                                                                                     | BR_WAP-047",68.75,"Case"]
["Brandt","BR_WAP-048"," Sequestar 9% Ca ","EDTA Microgranule","10 X 5lb Case"," Sequestar 9% Ca  | EDTA Microgranule | 10 X 5lb Case                                                                                                     | BR_WAP-048",225,"Case"]
["Brandt","BR_WAP-049","Sequestar 14% Cu ","EDTA Microgranule","10 X 5lb Case","Sequestar 14% Cu  | EDTA Microgranule | 10 X 5lb Case                                                                                                     | BR_WAP-049",300,"Case"]
["Brandt","BR_WAP-050","Sequestar 6%Fe ","EDDHA Water Dispersible Granule","10 X 5lb Case","Sequestar 6%Fe  | EDDHA Water Dispersible Granule | 10 X 5lb Case                                                                                                     | BR_WAP-050",425,"Case"]
["Brandt","BR_WAP-051","Sequestar 11% Fe ","DTPA Microgranule ","25lb Bag","Sequestar 11% Fe  | DTPA Microgranule  | 25lb Bag                                                                                                     | BR_WAP-051",166.25,"Bag"]
["Brandt","BR_WAP-052","Sequestar 13.2% Fe ","EDTA Microgranule","10 X 5lb Case","Sequestar 13.2% Fe  | EDTA Microgranule | 10 X 5lb Case                                                                                                     | BR_WAP-052",219.45,"Case"]
["Brandt","BR_WAP-053","Sequestar 5.5% Mg","EDTA Microgranule","10 X 5lb Case","Sequestar 5.5% Mg | EDTA Microgranule | 10 X 5lb Case                                                                                                     | BR_WAP-053",350,"Case"]
["Brandt","BR_WAP-054","Sequestar 13% Mn ","EDTA Microgranule","10 X 5lb Case","Sequestar 13% Mn  | EDTA Microgranule | 10 X 5lb Case                                                                                                     | BR_WAP-054",245,"Case"]
["Brandt","BR_WAP-055","Sequestar 14%Zn ","EDTA Microgranule","10 X 5lb Case","Sequestar 14%Zn  | EDTA Microgranule | 10 X 5lb Case                                                                                                     | BR_WAP-055",245,"Case"]
["Brandt","BR_WAP-056","Brandt Fungi-Phite","EPA registered fungicide","2x2.5 Gallon","Brandt Fungi-Phite | EPA registered fungicide | 2x2.5 Gallon                                                                                                     | BR_WAP-056",190,"Case"]
["Brandt","BR_WAP-057","Brandt Liqui-Phi","Phosphite fertilizer","2x2.5 Gallon","Brandt Liqui-Phi | Phosphite fertilizer | 2x2.5 Gallon                                                                                                     | BR_WAP-057",162.5,"Case"]
["Brandt","BR_WAP-058","Brandt Mega-Phi","Phosphite fertilizer","2x2.5 Gallon","Brandt Mega-Phi | Phosphite fertilizer | 2x2.5 Gallon                                                                                                     | BR_WAP-058",340,"Case"]
["Brandt","BR_WAP-059","Noculate 8-2-8","Ca0.10%Mg0.50%S5.00%Fe1.00%Mn0.50% Amm. Sul., Methylene Urea","50lb Bag","Noculate 8-2-8 | Ca0.10%Mg0.50%S5.00%Fe1.00%Mn0.50% Amm. Sul., Methylene Urea | 50lb Bag                                                                                                     | BR_WAP-059",36,"Bag"]
["Brandt","BR_WAP-060","Noculate 13-4-13","Fe1.00%Mg1.00%Mn0.50%S4.00% Urea, Methylene Urea","50lb Bag","Noculate 13-4-13 | Fe1.00%Mg1.00%Mn0.50%S4.00% Urea, Methylene Urea | 50lb Bag                                                                                                     | BR_WAP-060",42,"Bag"]
["Brandt","BR_WAP-061","Noculate 8-3-17","Ca0.80%Fe4.00%Mg1%   Mn3.10%S6% Urea, Methylene Urea","50lb Bag","Noculate 8-3-17 | Ca0.80%Fe4.00%Mg1%   Mn3.10%S6% Urea, Methylene Urea | 50lb Bag                                                                                                     | BR_WAP-061",42,"Bag"]
["Brandt","BR_WAP-062","Noculate 11-2-11","Ca0.10%Fe0.50%Mg2.00%S12% Ammonium Sulfate","50lb Bag","Noculate 11-2-11 | Ca0.10%Fe0.50%Mg2.00%S12% Ammonium Sulfate | 50lb Bag                                                                                                     | BR_WAP-062",36,"Bag"]
["Brandt","BR_WAP-063","Parco 13-2-13 Kym Special","Ca7.10%Fe1.50%Mg3.2%Mn1.50%s6% Amm. Sul., Methylene Urea","50lb Bag","Parco 13-2-13 Kym Special | Ca7.10%Fe1.50%Mg3.2%Mn1.50%s6% Amm. Sul., Methylene Urea | 50lb Bag                                                                                                     | BR_WAP-063",41,"Bag"]
["Brandt","BR_WAP-064","Brandt Uptake 12","12% Humic substances (Leonardite)","2x2.5 Gallon","Brandt Uptake 12 | 12% Humic substances (Leonardite) | 2x2.5 Gallon                                                                                                     | BR_WAP-064",101,"Case"]
["Brandt","BR_WAP-065","Brandt Uptake Advanced","8% Humic Acid Devired from Leonardite Ore","2x2.5 Gallon","Brandt Uptake Advanced | 8% Humic Acid Devired from Leonardite Ore | 2x2.5 Gallon                                                                                                     | BR_WAP-065",127,"Case"]
["Brandt","BR_WAP-066","Leonardite Plus Fine","80% Humic Acid","44lb Bag","Leonardite Plus Fine | 80% Humic Acid | 44lb Bag                                                                                                     | BR_WAP-066",1.4,"Lb"]
["Brandt","BR_WAP-067","Brandt Seaweed Max","Seaweed Extra With Humic Acid","2x2.5 Gallon","Brandt Seaweed Max | Seaweed Extra With Humic Acid | 2x2.5 Gallon                                                                                                     | BR_WAP-067",292.5,"Case"]
["Brandt","BR_WAP-068","Brandt In-Cyte","3-12-0 plus Humic Acid, Seaweed Extract, Wetting Agent","2x2.5 Gallon","Brandt In-Cyte | 3-12-0 plus Humic Acid, Seaweed Extract, Wetting Agent | 2x2.5 Gallon                                                                                                     | BR_WAP-068",107.5,"Case"]
["Brandt","BR_WAP-069","Brandt Parco Root XL","1.5% Mg, 4% S, 0.16% B, 3.5% Fe, 0.75% Mn, 0.003% Mo, 0.75% Zn","2x2.5 Gallon","Brandt Parco Root XL | 1.5% Mg, 4% S, 0.16% B, 3.5% Fe, 0.75% Mn, 0.003% Mo, 0.75% Zn | 2x2.5 Gallon                                                                                                     | BR_WAP-069",127.5,"Case"]
["Brandt","BR_WAP-070","Brandt Plant Start 8-27-2","Starter Fertilizer, Seaweed Extract","2x2.5 Gallon","Brandt Plant Start 8-27-2 | Starter Fertilizer, Seaweed Extract | 2x2.5 Gallon                                                                                                     | BR_WAP-070",182.5,"Case"]
["Brandt","BR_WAP-071","Neo-Tec® SO","Parasitic Nematode Control","2x2.5 Gallon","Neo-Tec® SO | Parasitic Nematode Control | 2x2.5 Gallon                                                                                                     | BR_WAP-071",775,"Case"]
["Brandt","BR_WAP-072","Neo-Tec® GSO","Granular Parasitic Nematode Control","50lb Bag","Neo-Tec® GSO | Granular Parasitic Nematode Control | 50lb Bag                                                                                                     | BR_WAP-072",100,"Bag"]
["Brandt","BR_WAP-073","Brandt Nema-Q® (OMRI LISTED)","8.6% Saponins of Quillaja saponaria","5 Gallon Pail","Brandt Nema-Q® (OMRI LISTED) | 8.6% Saponins of Quillaja saponaria | 5 Gallon Pail                                                                                                     | BR_WAP-073",780,"Pail"]
["Brandt","BR_WAP-074","Brandt Big Foot® ","Blue Spray Indicator Dye","2x2.5 Gallon","Brandt Big Foot®  | Blue Spray Indicator Dye | 2x2.5 Gallon                                                                                                     | BR_WAP-074",255,"Case"]
["Brandt","BR_WAP-075","Brandt Big Foot® ","Blue Spray Indicator Dye","4x1 Gallon","Brandt Big Foot®  | Blue Spray Indicator Dye | 4x1 Gallon                                                                                                     | BR_WAP-075",208,"Case"]
["Brandt","BR_WAP-076","Brandt Big Foot® SS","Super Strength Blue Indicator Dye","12 x 1 quart","Brandt Big Foot® SS | Super Strength Blue Indicator Dye | 12 x 1 quart                                                                                                     | BR_WAP-076",288,"Case"]
["Brandt","BR_WAP-077","Brandt Big Foot® SS","Super Strength Blue Indicator Dye","4x1 Gallon","Brandt Big Foot® SS | Super Strength Blue Indicator Dye | 4x1 Gallon                                                                                                     | BR_WAP-077",336,"Case"]
["Brandt","BR_WAP-078","Brandt Big Foot® SS","Super Strength Blue Indicator Dye","2x2.5 Gallon","Brandt Big Foot® SS | Super Strength Blue Indicator Dye | 2x2.5 Gallon                                                                                                     | BR_WAP-078",415,"Case"]
["Brandt","BR_WAP-079","Brandt Big Foot® WSB","Blue Spray Indicator in Water Soluble Bag","1 x 50 Bags","Brandt Big Foot® WSB | Blue Spray Indicator in Water Soluble Bag | 1 x 50 Bags                                                                                                     | BR_WAP-079",256,"pail"]
["Brandt","BR_WAP-080","Brandt Mark-It-Red","Super Strenght Red; Great for Herbicides","12x1 Quart","Brandt Mark-It-Red | Super Strenght Red; Great for Herbicides | 12x1 Quart                                                                                                     | BR_WAP-080",343,"Case"]
["Brandt","BR_WAP-081","Brandt Green Toes SS","Super Strength Green Indicator Dye","12x1 Quart","Brandt Green Toes SS | Super Strength Green Indicator Dye | 12x1 Quart                                                                                                     | BR_WAP-081",306,"Case"]
["Brandt","BR_WAP-082","Brandt Mean and Green ","Extra Dark Grass and Divot Paint","2x2.5 Gallon","Brandt Mean and Green  | Extra Dark Grass and Divot Paint | 2x2.5 Gallon                                                                                                     | BR_WAP-082",438.5,"Case"]
["Brandt","BR_WAP-083","Brandt Big Foot Foamy","Foam Indicator Marker","4x1 Gallon","Brandt Big Foot Foamy | Foam Indicator Marker | 4x1 Gallon                                                                                                     | BR_WAP-083",204,"Case"]
["Brandt","BR_WAP-084","Blue Lagoon® SS","Blue Super Strength Pond Colorant","12x1 Quart","Blue Lagoon® SS | Blue Super Strength Pond Colorant | 12x1 Quart                                                                                                     | BR_WAP-084",288,"Case"]
["Brandt","BR_WAP-085","Blue Lagoon®","Blue Pond Colorant","4x1 Gallon","Blue Lagoon® | Blue Pond Colorant | 4x1 Gallon                                                                                                     | BR_WAP-085",208,"Case"]
["Brandt","BR_WAP-086","Blue Lagoon® WSB","Blue Pond Colorant","36 - 1 x 50 case","Blue Lagoon® WSB | Blue Pond Colorant | 36 - 1 x 50 case                                                                                                     | BR_WAP-086",260,"Case"]
["Brandt","BR_WAP-087","Blue Shadow SS","Blue/Green Super Strength Pond Colorant","4x1 Gallon","Blue Shadow SS | Blue/Green Super Strength Pond Colorant | 4x1 Gallon                                                                                                     | BR_WAP-087",344,"Case"]
["Brandt","BR_WAP-088","Brandt Midnight Blue SS","Blue/Black Super Strength Pond Colorant","12x1 Quart","Brandt Midnight Blue SS | Blue/Black Super Strength Pond Colorant | 12x1 Quart                                                                                                     | BR_WAP-088",327.60000000000002,"Case"]
["Brandt","BR_WAP-089","Bradnt Loch Ness® SS","Black Super Strength Pond Colorant","12x1 Quart","Bradnt Loch Ness® SS | Black Super Strength Pond Colorant | 12x1 Quart                                                                                                     | BR_WAP-089",357,"Case"]
["Brandt","BR_WAP-090","Brandt Defoamer","Spray Tank Defoamer","12x1 Quart","Brandt Defoamer | Spray Tank Defoamer | 12x1 Quart                                                                                                     | BR_WAP-090",120,"Case"]
["Brandt","BR_WAP-091","Brandt Indicate 5 ","pH indicater/acidifier, water conditioner","4x1 Gallon","Brandt Indicate 5  | pH indicater/acidifier, water conditioner | 4x1 Gallon                                                                                                     | BR_WAP-091",226,"Case"]
["Brandt","BR_WAP-092","Brandt M.S.O.","Premium Modified Vegetable Oil Concentrate","2x2.5 Gallon","Brandt M.S.O. | Premium Modified Vegetable Oil Concentrate | 2x2.5 Gallon                                                                                                     | BR_WAP-092",115.7,"Case"]
["Brandt","BR_WAP-093","Brandt Magnify","APE Free Activator/Penetrant/Water Conditioner","2x2.5 Gallon","Brandt Magnify | APE Free Activator/Penetrant/Water Conditioner | 2x2.5 Gallon                                                                                                     | BR_WAP-093",150.5,"Case"]
["Brandt","BR_WAP-094","Brandt Spread It","80/20 Surfactant Sticker","4x1 Gallon","Brandt Spread It | 80/20 Surfactant Sticker | 4x1 Gallon                                                                                                     | BR_WAP-094",160,"Case"]
["Brandt","BR_WAP-095","Brandt Super 7","APE Free Penetrant/Acidifier/Deposition Acid","2x2.5 Gallon","Brandt Super 7 | APE Free Penetrant/Acidifier/Deposition Acid | 2x2.5 Gallon                                                                                                     | BR_WAP-095",178.5,"Case"]
["Brandt","BR_WAP-096","Brandt 719 Spreader ","(O) Non-ionic penetrant and wetting agent","4x1 Gallon","Brandt 719 Spreader  | (O) Non-ionic penetrant and wetting agent | 4x1 Gallon                                                                                                     | BR_WAP-096",319.2,"Case"]
["Brandt","BR_WAP-097","Brandt Super Wetter ","(O) Premium 100% Organosilicone Surfactant","4x1 Gallon","Brandt Super Wetter  | (O) Premium 100% Organosilicone Surfactant | 4x1 Gallon                                                                                                     | BR_WAP-097",510.8,"Case"]
["Brandt","BR_WAP-098","Brandt Torpedo","Surfactant/Penetrant/Deposition Aid","2x2.5 Gallon","Brandt Torpedo | Surfactant/Penetrant/Deposition Aid | 2x2.5 Gallon                                                                                                     | BR_WAP-098",195,"Case"]
["Brandt","BR_WAP-099","Brandt Top Coat ","Non-Ionic penetrant and wetting agent","2x2.5 Gallon","Brandt Top Coat  | Non-Ionic penetrant and wetting agent | 2x2.5 Gallon                                                                                                     | BR_WAP-099",427,"Case"]
["Brandt","BR_WAP-100","Brandt No Foam A  ","90% General Purpose NIS","2x2.5 Gallon","Brandt No Foam A   | 90% General Purpose NIS | 2x2.5 Gallon                                                                                                     | BR_WAP-100",133,"Case"]
["Brandt","BR_WAP-101","Brandt No Foam B ","General Purpose Spreader and Buffer","2x2.5 Gallon","Brandt No Foam B  | General Purpose Spreader and Buffer | 2x2.5 Gallon                                                                                                     | BR_WAP-101",99.5,"Case"]
["Brandt","BR_WAP-102","Brandt Umbrella","Spreader/Sticker/Deposition Aid","4x1 Gallon","Brandt Umbrella | Spreader/Sticker/Deposition Aid | 4x1 Gallon                                                                                                     | BR_WAP-102",255.4,"Case"]
["Brandt","BR_WAP-103","Brandt Odor-Mask","(Methyl Salicylate) Pesticide Odor Masking Agen","12x1 Quart","Brandt Odor-Mask | (Methyl Salicylate) Pesticide Odor Masking Agen | 12x1 Quart                                                                                                     | BR_WAP-103",430,"Case"]
["COMAND","CM_WAP-001","Comand Greens Grade Bag","Comand 1/16 Greens Grade 45lb Bag","45 lb Bag","Comand Greens Grade Bag | Comand 1/16 Greens Grade 45lb Bag | 45 lb Bag                                                                                                     | CM_WAP-001",22,"Bag"]
["COMAND","CM_WAP-002","Comand 1/8 Bag","Comand 1/8 100 45lb Bag","45 lb Bag","Comand 1/8 Bag | Comand 1/8 100 45lb Bag | 45 lb Bag                                                                                                     | CM_WAP-002",14,"Bag"]
["COMAND","CM_WAP-003","Comand 1/8 1000 LB Sack","Comand 1/8 1000 LB Sack","1000 lb Bag","Comand 1/8 1000 LB Sack | Comand 1/8 1000 LB Sack | 1000 lb Bag                                                                                                     | CM_WAP-003",340,"Bag"]
["COMAND","CM_WAP-004","Comand 1/8in Bulk Truckload","Comand 1/8in Bulk","Bulk","Comand 1/8in Bulk Truckload | Comand 1/8in Bulk | Bulk                                                                                                     | CM_WAP-004",66,"Yard"]
["COMAND","CM_WAP-005","Comand 1/4 1000 LB Sack","Comand 1/4 1000 LB Sack","1000 lb Bag","Comand 1/4 1000 LB Sack | Comand 1/4 1000 LB Sack | 1000 lb Bag                                                                                                     | CM_WAP-005",330,"Bag"]
["COMAND","CM_WAP-006","Comand 1/4in Bulk Truckload","Comand 1/4in Bulk","Bulk","Comand 1/4in Bulk Truckload | Comand 1/4in Bulk | Bulk                                                                                                     | CM_WAP-006",45,"Yard"]
["COMAND","CM_WAP-007","Comand 3/8 1000 LB Sack","Comand 3/8 1000 LB Sack","1000 lb Bag","Comand 3/8 1000 LB Sack | Comand 3/8 1000 LB Sack | 1000 lb Bag                                                                                                     | CM_WAP-007",235,"Bag"]
["COMAND","CM_WAP-008","Comand 3/8in Bulk Truckload","Comand 3/8in Bulk","Bulk","Comand 3/8in Bulk Truckload | Comand 3/8in Bulk | Bulk                                                                                                     | CM_WAP-008",39,"Yard"]
["COMAND","CM_WAP-009","Comand 1/2in Bulk Truckload","Comand 1/2in Bulk","Bulk","Comand 1/2in Bulk Truckload | Comand 1/2in Bulk | Bulk                                                                                                     | CM_WAP-009",36,"Yard"]
["COMAND","CM_WAP-010","Comand 3/4in Bulk Truckload","Comand 3/4in Bulk","Bulk","Comand 3/4in Bulk Truckload | Comand 3/4in Bulk | Bulk                                                                                                     | CM_WAP-010",16.5,"Yard"]
["COMAND","CM_WAP-011","Comand 1-1/4 AG Grade Truckload","Comand 1-1/4 AG Grade","Bulk","Comand 1-1/4 AG Grade Truckload | Comand 1-1/4 AG Grade | Bulk                                                                                                     | CM_WAP-011",15,"Yard"]
["COMAND","CM_WAP-012","Comandscape 2.0 CF Bag","Comandscape 2.0 CF Bag","2 Cu Ft Bag","Comandscape 2.0 CF Bag | Comandscape 2.0 CF Bag | 2 Cu Ft Bag                                                                                                     | CM_WAP-012",8.6999999999999993,"Bag"]
["COMAND","CM_WAP-013","Comandscape Plus 1000 Lb Sack","Comandscape Plus 1000 Lb Sack","1000 lb Bag","Comandscape Plus 1000 Lb Sack | Comandscape Plus 1000 Lb Sack | 1000 lb Bag                                                                                                     | CM_WAP-013",225,"Each"]
["COMAND","CM_WAP-014","Comandscape Bulk Truckload","Comandscape Bulk","Bulk","Comandscape Bulk Truckload | Comandscape Bulk | Bulk                                                                                                     | CM_WAP-014",35.700000000000003,"Yard"]
["COMAND","CM_WAP-015","Mycro Mulch 2 Cubic Yard","Mycro Mulch 2 Cubic Yard","2 Cu Yard bag","Mycro Mulch 2 Cubic Yard | Mycro Mulch 2 Cubic Yard | 2 Cu Yard bag                                                                                                     | CM_WAP-015",150,"Bag"]
["COMAND","CM_WAP-016","Mycro Mulch Truckload","Mycro Mulch Bulk","Bulk","Mycro Mulch Truckload | Mycro Mulch Bulk | Bulk                                                                                                     | CM_WAP-016",27.69,"Yard"]
["Earthworks","ZZ_EWP-001","3-4-3  Replenish G.G.","100% organic egg layer poultry compost","50 Lb Bag","3-4-3  Replenish G.G. | 100% organic egg layer poultry compost | 50 Lb Bag                                                                                                     | ZZ_EWP-001",17,"Bag"]
["Earthworks","ZZ_EWP-002","3-4-3  Replenish G.G.","100% organic egg layer poultry compost","500 Lb ","3-4-3  Replenish G.G. | 100% organic egg layer poultry compost | 500 Lb                                                                                                      | ZZ_EWP-002",171.25,"Bag"]
["Earthworks","ZZ_EWP-003","Ecolite soil amendment GG","Zeolite mineral soil amendment GG","1000 Lb ","Ecolite soil amendment GG | Zeolite mineral soil amendment GG | 1000 Lb                                                                                                      | ZZ_EWP-003",360,"Bag"]
["Earthworks","ZZ_EWP-004","Ecolite soil amendment GG","Zeolite mineral soil amendment GG","50 Lb Bag","Ecolite soil amendment GG | Zeolite mineral soil amendment GG | 50 Lb Bag                                                                                                     | ZZ_EWP-004",18,"Bag"]
["Earthworks","ZZ_EWP-005","Myco Replenish 3-3-3 GG ","Endo and ecto mycorrhizae fungi","50 Lb Bag","Myco Replenish 3-3-3 GG  | Endo and ecto mycorrhizae fungi | 50 Lb Bag                                                                                                     | ZZ_EWP-005",37,"Bag"]
["Earthworks","ZZ_EWP-006","Myco Replenish 3-3-3 GG ","Endo and ecto mycorrhizae fungi","500 Lb Bag","Myco Replenish 3-3-3 GG  | Endo and ecto mycorrhizae fungi | 500 Lb Bag                                                                                                     | ZZ_EWP-006",1490,"Ton"]
["Earthworks","ZZ_EWP-007","Renovate Plus 1-0-1 G.G.","Endo and ecto mycorrhizae fungi","1000 Lb ","Renovate Plus 1-0-1 G.G. | Endo and ecto mycorrhizae fungi | 1000 Lb                                                                                                      | ZZ_EWP-007",1550,"Ton"]
["Earthworks","ZZ_EWP-008","Renovate Plus 1-0-1 GG","Blend of carbon and mineral amendments","50 Lb Bag","Renovate Plus 1-0-1 GG | Blend of carbon and mineral amendments | 50 Lb Bag                                                                                                     | ZZ_EWP-008",41,"Bag"]
["Earthworks","ZZ_EWP-009","Replenish 10-2-5 Fairway Grade","50% water insoluble nitrogen fertilizer","50 Lb Bag","Replenish 10-2-5 Fairway Grade | 50% water insoluble nitrogen fertilizer | 50 Lb Bag                                                                                                     | ZZ_EWP-009",32,"Bag"]
["Earthworks","ZZ_EWP-010","Replenish 10-2-5 Fairway Grade","50% water insoluble nitrogen fertilizer","50 Lb Bag","Replenish 10-2-5 Fairway Grade | 50% water insoluble nitrogen fertilizer | 50 Lb Bag                                                                                                     | ZZ_EWP-010",35,"Bag"]
["Earthworks","ZZ_EWP-011","Replenish 5-4-5 GG ","Composted poultry manure","50 Lb Bag","Replenish 5-4-5 GG  | Composted poultry manure | 50 Lb Bag                                                                                                     | ZZ_EWP-011",31,"Bag"]
["Earthworks","ZZ_EWP-012","Replenish 8-2-2 ","SGN 150 fairway grade","50 LB Bag","Replenish 8-2-2  | SGN 150 fairway grade | 50 LB Bag                                                                                                     | ZZ_EWP-012",23,"Bag"]
["Earthworks","ZZ_EWP-013","Bio Vantage     ","Rhizobacteria","2x2.5 Gallon","Bio Vantage      | Rhizobacteria | 2x2.5 Gallon                                                                                                     | ZZ_EWP-013",240,"Case"]
["Earthworks","ZZ_EWP-014","Cal-Vantage 6-0-0 (555 Program)","Calcium, Nitrogen, Sulfur, and Boron","2x2.5 Gallon","Cal-Vantage 6-0-0 (555 Program) | Calcium, Nitrogen, Sulfur, and Boron | 2x2.5 Gallon                                                                                                     | ZZ_EWP-014",220,"Case"]
["Earthworks","ZZ_EWP-015","Cal-Vantage 6-0-0 (555 Program)","Calcium, Nitrogen, Sulfur, and Boron","55 Gallon ","Cal-Vantage 6-0-0 (555 Program) | Calcium, Nitrogen, Sulfur, and Boron | 55 Gallon                                                                                                      | ZZ_EWP-015",2050,"Drum"]
["Earthworks","ZZ_EWP-016","Ecolite soil amendment GG","Zeolite mineral soil amendment GG","2000 Lb ","Ecolite soil amendment GG | Zeolite mineral soil amendment GG | 2000 Lb                                                                                                      | ZZ_EWP-016",720,"Ton"]
["Earthworks","ZZ_EWP-017","Kick 0-1-2 ","Powerful soil conditioner","2x2.5 Gallon","Kick 0-1-2  | Powerful soil conditioner | 2x2.5 Gallon                                                                                                     | ZZ_EWP-017",220,"Case"]
["Earthworks","ZZ_EWP-018","Mag Vantage      ","Photosynthesis Enhancer","2x2.5 Gallon","Mag Vantage       | Photosynthesis Enhancer | 2x2.5 Gallon                                                                                                     | ZZ_EWP-018",117.5,"Case"]
["Earthworks","ZZ_EWP-019","Protien Plus 14-2-5 (555 Program)","Kelp Extract, Molasses, Calcium Nitrate","2x2.5 Gallon","Protien Plus 14-2-5 (555 Program) | Kelp Extract, Molasses, Calcium Nitrate | 2x2.5 Gallon                                                                                                     | ZZ_EWP-019",210,"Case"]
["Earthworks","ZZ_EWP-020","Sea 3","Sea based nutrients","55 Gallon ","Sea 3 | Sea based nutrients | 55 Gallon                                                                                                      | ZZ_EWP-020",1980,"Drum"]
["Earthworks","ZZ_EWP-021","Sea 3 ","Organic based soil amendment","2x2.5 Gallon","Sea 3  | Organic based soil amendment | 2x2.5 Gallon                                                                                                     | ZZ_EWP-021",215,"Case"]
["Earthworks","ZZ_EWP-022","Sea 3    ","Sea based nutrients","275 Gallon ","Sea 3     | Sea based nutrients | 275 Gallon                                                                                                      | ZZ_EWP-022",30.45,"Gallon"]
["Earthworks","ZZ_EWP-023","Trilogy TBS (555 Program)","Kelp, Fish tankage and Molasses","2x2.5 Gallon","Trilogy TBS (555 Program) | Kelp, Fish tankage and Molasses | 2x2.5 Gallon                                                                                                     | ZZ_EWP-023",230,"Case"]
["Earthworks","ZZ_EWP-024","Trilogy TBS (555 Program)     ","1-5-5 38% Organic Matter","55 Gallon","Trilogy TBS (555 Program)      | 1-5-5 38% Organic Matter | 55 Gallon                                                                                                     | ZZ_EWP-024",2085,"Drum"]
["Grigg Brothers","GB_GSG-001","7-7-7 Seven Iron™","7-7-7 Fine Grade","50 Lb Bag","7-7-7 Seven Iron™ | 7-7-7 Fine Grade | 50 Lb Bag                                                                                                     | GB_GSG-001",55,"Bag"]
["Grigg Brothers","GB_GSG-001","7-0-14 ZeroPhos®","7-0-14 Coarse Grade","50 Lb Bag","7-0-14 ZeroPhos® | 7-0-14 Coarse Grade | 50 Lb Bag                                                                                                     | GB_GSG-001",55,"Bag"]
["Grigg Brothers","GB_GSG-001","7-0-14 ZeroPhos®","7-0-14 Fine Grade","50 Lb Bag","7-0-14 ZeroPhos® | 7-0-14 Fine Grade | 50 Lb Bag                                                                                                     | GB_GSG-001",55,"Bag"]
["Grigg Brothers","GB_GSG-001","10-2-4 All Natural Organic","10-2-4 Fine Grade","50 Lb Bag","10-2-4 All Natural Organic | 10-2-4 Fine Grade | 50 Lb Bag                                                                                                     | GB_GSG-001",57,"Bag"]
["Grigg Brothers","GB_GSG-001","CK Balance™","Fine Grade","50 Lb Bag","CK Balance™ | Fine Grade | 50 Lb Bag                                                                                                     | GB_GSG-001",49,"Bag"]
["Grigg Brothers","GB_GSG-001","SK Balance™","Fine Grade","50 Lb Bag","SK Balance™ | Fine Grade | 50 Lb Bag                                                                                                     | GB_GSG-001",50,"Bag"]
["Grigg Brothers","GB_GSG-001","Z-Mendit","Zeolite Ore","50 Lb Bag","Z-Mendit | Zeolite Ore | 50 Lb Bag                                                                                                     | GB_GSG-001",13,"Bag"]
["Grigg Brothers","GB_PFL-001","Grigg Turftopia 5-0-5","5% N, 5% K, 0.2% Mn, 0.003% Mo, 0.2% Zn","2x2.5 Gallon","Grigg Turftopia 5-0-5 | 5% N, 5% K, 0.2% Mn, 0.003% Mo, 0.2% Zn | 2x2.5 Gallon                                                                                                     | GB_PFL-001",192.5,"Case"]
["Grigg Brothers","GB_PFL-002","Grigg A-O-K®","A-O-K® 2-0-24","2x2.5 Gallon","Grigg A-O-K® | A-O-K® 2-0-24 | 2x2.5 Gallon                                                                                                     | GB_PFL-002",216.25,"Case"]
["Grigg Brothers","GB_PFL-003","Grigg Carboplex®","Carboplex® 6-4-4","2x2.5 Gallon","Grigg Carboplex® | Carboplex® 6-4-4 | 2x2.5 Gallon                                                                                                     | GB_PFL-003",145,"Case"]
["Grigg Brothers","GB_PFL-004","Gary's Green Ultra","Gary's Green Ultra 14-2-3","2x2.5 Gallon","Gary's Green Ultra | Gary's Green Ultra 14-2-3 | 2x2.5 Gallon                                                                                                     | GB_PFL-004",232,"Case"]
["Grigg Brothers","GB_PFL-005","Gary's Green®","Gary's Green® 18-3-4 +Fe ","2x2.5 Gallon","Gary's Green® | Gary's Green® 18-3-4 +Fe  | 2x2.5 Gallon                                                                                                     | GB_PFL-005",210,"Case"]
["Grigg Brothers","GB_PFL-006","Grigg Iron Combo 1-0-2","1-0-2 w/ 0.16%B,0.13%Cu,4%Fe,1%Mn,0.8%Zn","2x2.5 Gallon","Grigg Iron Combo 1-0-2 | 1-0-2 w/ 0.16%B,0.13%Cu,4%Fe,1%Mn,0.8%Zn | 2x2.5 Gallon                                                                                                     | GB_PFL-006",272.5,"Case"]
["Grigg Brothers","GB_PFL-007","Grigg Iron Combo 12-0-0","12-0-0 w/ 5%Fe,0.5%Mn,0.5%Zn","2x2.5 Gallon","Grigg Iron Combo 12-0-0 | 12-0-0 w/ 5%Fe,0.5%Mn,0.5%Zn | 2x2.5 Gallon                                                                                                     | GB_PFL-007",95,"Case"]
["Grigg Brothers","GB_PFL-008","Grigg Kelplex™ ","Kelplex™ 1-2-2    Ascophyllum nodosum","2x2.5 Gallon","Grigg Kelplex™  | Kelplex™ 1-2-2    Ascophyllum nodosum | 2x2.5 Gallon                                                                                                     | GB_PFL-008",345,"Case"]
["Grigg Brothers","GB_PFL-009","Grigg Magnesium Complex","Mg 5%","2x2.5 Gallon","Grigg Magnesium Complex | Mg 5% | 2x2.5 Gallon                                                                                                     | GB_PFL-009",218,"Case"]
["Grigg Brothers","GB_PFL-010","Grigg Manganese Combo","1.2%Mg,0.4%Cu,5%Mn,1%Zn","2x2.5 Gallon","Grigg Manganese Combo | 1.2%Mg,0.4%Cu,5%Mn,1%Zn | 2x2.5 Gallon                                                                                                     | GB_PFL-010",242,"Case"]
["Grigg Brothers","GB_PFL-011","Grigg Microburst™","1%K,.04%B,.05%Cu,3.4%Fe,2.4%Mn,.01Mo,1%Zn","2x2.5 Gallon","Grigg Microburst™ | 1%K,.04%B,.05%Cu,3.4%Fe,2.4%Mn,.01Mo,1%Zn | 2x2.5 Gallon                                                                                                     | GB_PFL-011",262.25,"Case"]
["Grigg Brothers","GB_PFL-012","Grigg Nutra Green  5-10-5","5-10-5 w/1%Mg,.12%B,.1%Cu,1%Fe,.5%Mn,.1%Zn","2x2.5 Gallon","Grigg Nutra Green  5-10-5 | 5-10-5 w/1%Mg,.12%B,.1%Cu,1%Fe,.5%Mn,.1%Zn | 2x2.5 Gallon                                                                                                     | GB_PFL-012",223.25,"Case"]
["Grigg Brothers","GB_PFL-013","Grigg P-K Plus®","P-K Plus® 3-5-17","2x2.5 Gallon","Grigg P-K Plus® | P-K Plus® 3-5-17 | 2x2.5 Gallon                                                                                                     | GB_PFL-013",285,"Case"]
["Grigg Brothers","GB_PFL-014","Grigg Sili Kal B™","Sili Kal B™ 8-0-4   ","2x2.5 Gallon","Grigg Sili Kal B™ | Sili Kal B™ 8-0-4    | 2x2.5 Gallon                                                                                                     | GB_PFL-014",280,"Case"]
["Grigg Brothers","GB_PGT-001","GreenPIG™","GreenPIG™","2x2.5 Gallon","GreenPIG™ | GreenPIG™ | 2x2.5 Gallon                                                                                                     | GB_PGT-001",896,"Case"]
["Grigg Brothers","GB_PGT-002","7-7-7 Seven Iron™","7-7-7 Coarse Grade","50 Lb Bag","7-7-7 Seven Iron™ | 7-7-7 Coarse Grade | 50 Lb Bag                                                                                                     | GB_PGT-002",55,"Bag"]
["Grigg Brothers","GB_SMD-001","Grigg Displace™","Displace™ 9-0-0 w/ 12% Ca","2x2.5 Gallon","Grigg Displace™ | Displace™ 9-0-0 w/ 12% Ca | 2x2.5 Gallon                                                                                                     | GB_SMD-001",240,"Case"]
["Grigg Brothers","GB_SMD-002","Grigg Rhizonify™","6-4-4 plus Amino Acids","2x2.5 Gallon","Grigg Rhizonify™ | 6-4-4 plus Amino Acids | 2x2.5 Gallon                                                                                                     | GB_SMD-002",197.5,"Case"]
["Grigg Brothers","GB_SMD-003","Grigg Fairphyte 1-0-25","Phoshite product","2x2.5 Gallon","Grigg Fairphyte 1-0-25 | Phoshite product | 2x2.5 Gallon                                                                                                     | GB_SMD-003",135,"Case"]
["Grigg Brothers","GB_SPL-001","Grigg Suprema®","Suprema® 12-0-12","2x2.5 Gallon","Grigg Suprema® | Suprema® 12-0-12 | 2x2.5 Gallon                                                                                                     | GB_SPL-001",200,"Case"]
["Grigg Brothers","GB_SPL-002","Grigg Tuff Turf®","Tuff Turf® 1-0-14 ","2x2.5 Gallon","Grigg Tuff Turf® | Tuff Turf® 1-0-14  | 2x2.5 Gallon                                                                                                     | GB_SPL-002",296,"Case"]
["Grigg Brothers","GB_SPL-003","Grigg Ultraplex®","Ultraplex® 4-0-3 ","2x2.5 Gallon","Grigg Ultraplex® | Ultraplex® 4-0-3  | 2x2.5 Gallon                                                                                                     | GB_SPL-003",276.75,"Case"]
["Grigg Brothers","GB_SPL-004","Grigg Bio Blend™","Bio Blend™ 10-0-0","2x2.5 Gallon","Grigg Bio Blend™ | Bio Blend™ 10-0-0 | 2x2.5 Gallon                                                                                                     | GB_SPL-004",280,"Case"]
["Grigg Brothers","GB_SPL-005","Grigg Burley Green   18-2-3","Burley Green   18-2-3 slow release","2x2.5 Gallon","Grigg Burley Green   18-2-3 | Burley Green   18-2-3 slow release | 2x2.5 Gallon                                                                                                     | GB_SPL-005",130,"Case"]
["GV Water Soluables","GV_WSF-001","GV12636-PFI","12-6-36 Water Soluble Fertilizer","25 Lb Bag","GV12636-PFI | 12-6-36 Water Soluble Fertilizer | 25 Lb Bag                                                                                                     | GV_WSF-001",32,"Bag"]
["GV Water Soluables","GV_WSF-002","GV202020-PFI","20-20-20 Water Soluble Fertilizer w/ Minors","25 Lb Bag","GV202020-PFI | 20-20-20 Water Soluble Fertilizer w/ Minors | 25 Lb Bag                                                                                                     | GV_WSF-002",32,"Bag"]
["GV Water Soluables","GV_WSF-003","GV21331-PFI","21-3-31 Water Soluble Fertilizer","25 Lb Bag","GV21331-PFI | 21-3-31 Water Soluble Fertilizer | 25 Lb Bag                                                                                                     | GV_WSF-003",32,"Bag"]
["Lebanon","LB_WAP-001","CPR  Premix","CPR  Premix Biostimulant 4-0-1","2x2.5 Gallon","CPR  Premix | CPR  Premix Biostimulant 4-0-1 | 2x2.5 Gallon                                                                                                     | LB_WAP-001",190,"Case"]
["Lebanon","LB_WAP-002","CPR  Premix","CPR  Premix Biostimulant 4-0-1","15 Gallon Drum","CPR  Premix | CPR  Premix Biostimulant 4-0-1 | 15 Gallon Drum                                                                                                     | LB_WAP-002",545,"Drum"]
["Lebanon","LB_WAP-003","PanaSea Plus","PanaSea Plus  Seaplant Extract 0-2-2","2x2.5 Gallon","PanaSea Plus | PanaSea Plus  Seaplant Extract 0-2-2 | 2x2.5 Gallon                                                                                                     | LB_WAP-003",250,"Case"]
["Lebanon","LB_WAP-004","PanaSea Plus","PanaSea Plus  Seaplant Extract 0-2-2","15 Gallon Drum","PanaSea Plus | PanaSea Plus  Seaplant Extract 0-2-2 | 15 Gallon Drum                                                                                                     | LB_WAP-004",600,"Drum"]
["Lebanon","LB_WAP-005","True Foliar N","True Foliar N  19-1-6","2x2.5 Gallon","True Foliar N | True Foliar N  19-1-6 | 2x2.5 Gallon                                                                                                     | LB_WAP-005",175,"Case"]
["Lebanon","LB_WAP-006","True Foliar N","True Foliar N  19-1-6","15 Gallon Drum","True Foliar N | True Foliar N  19-1-6 | 15 Gallon Drum                                                                                                     | LB_WAP-006",500,"Drum"]
["Lebanon","LB_WAP-007","True Foliar P","True Foliar P  6-12-6","2x2.5 Gallon","True Foliar P | True Foliar P  6-12-6 | 2x2.5 Gallon                                                                                                     | LB_WAP-007",190,"Case"]
["Lebanon","LB_WAP-008","True Foliar P","True Foliar P  6-12-6","15 Gallon Drum","True Foliar P | True Foliar P  6-12-6 | 15 Gallon Drum                                                                                                     | LB_WAP-008",545,"Drum"]
["Lebanon","LB_WAP-009","True Foliar NPK","True Foliar NPK  10-3-16","2x2.5 Gallon","True Foliar NPK | True Foliar NPK  10-3-16 | 2x2.5 Gallon                                                                                                     | LB_WAP-009",215,"Case"]
["Lebanon","LB_WAP-010","True Foliar NPK","True Foliar NPK  10-3-16","15 Gallon Drum","True Foliar NPK | True Foliar NPK  10-3-16 | 15 Gallon Drum                                                                                                     | LB_WAP-010",620,"Drum"]
["Lebanon","LB_WAP-011","True Foliar K","True Foliar K  2-0-16","2x2.5 Gallon","True Foliar K | True Foliar K  2-0-16 | 2x2.5 Gallon                                                                                                     | LB_WAP-011",190,"Case"]
["Lebanon","LB_WAP-012","True Foliar K","True Foliar K  2-0-16","15 Gallon Drum","True Foliar K | True Foliar K  2-0-16 | 15 Gallon Drum                                                                                                     | LB_WAP-012",545,"Drum"]
["Lebanon","LB_WAP-013","True Foliar Si","True Foliar Si  3-0-10","2x2.5 Gallon","True Foliar Si | True Foliar Si  3-0-10 | 2x2.5 Gallon                                                                                                     | LB_WAP-013",150,"Case"]
["Lebanon","LB_WAP-014","True Foliar Si","True Foliar Si  3-0-10","15 Gallon Drum","True Foliar Si | True Foliar Si  3-0-10 | 15 Gallon Drum                                                                                                     | LB_WAP-014",420,"Drum"]
["Lebanon","LB_WAP-015","True Foliar Mg Mn","True Foliar Mg Mn  6-0-0","2x2.5 Gallon","True Foliar Mg Mn | True Foliar Mg Mn  6-0-0 | 2x2.5 Gallon                                                                                                     | LB_WAP-015",200,"Case"]
["Lebanon","LB_WAP-016","True Foliar Mg Mn","True Foliar Mg Mn  6-0-0","15 Gallon Drum","True Foliar Mg Mn | True Foliar Mg Mn  6-0-0 | 15 Gallon Drum                                                                                                     | LB_WAP-016",620,"Drum"]
["Lebanon","LB_WAP-017","Country Club 12 0 24","12 0 24 65% Meth-Ex 1.6% Fe .5% Mg .5% Mn SOP","40 Lb Bag","Country Club 12 0 24 | 12 0 24 65% Meth-Ex 1.6% Fe .5% Mg .5% Mn SOP | 40 Lb Bag                                                                                                     | LB_WAP-017",41,"Bag"]
["Lebanon","LB_WAP-018","Country Club 14 7 14 ","14 7 14 70% Meth-Ex 2% Fe 1.5% Mg 1% Mn SOP","40 Lb Bag","Country Club 14 7 14  | 14 7 14 70% Meth-Ex 2% Fe 1.5% Mg 1% Mn SOP | 40 Lb Bag                                                                                                     | LB_WAP-018",40,"Bag"]
["Lebanon","LB_WAP-019","Country Club 18 3 18","18 3 18 78% Meth-Ex 1.5% Fe .65 Mg .5% Mn SOP","40 Lb Bag","Country Club 18 3 18 | 18 3 18 78% Meth-Ex 1.5% Fe .65 Mg .5% Mn SOP | 40 Lb Bag                                                                                                     | LB_WAP-019",42.5,"Bag"]
["Lebanon","LB_WAP-020","Country Club 8 4 24","8 4 24 64% Meth-Ex 2.4% Fe 2% Mg 1% Mn SOP","50 Lb Bag","Country Club 8 4 24 | 8 4 24 64% Meth-Ex 2.4% Fe 2% Mg 1% Mn SOP | 50 Lb Bag                                                                                                     | LB_WAP-020",38.75,"Bag"]
["Lebanon","LB_WAP-021","Country Club 5-0-20","5-0-20 MethEx w/.067% Acelepry","50 Lb Bag","Country Club 5-0-20 | 5-0-20 MethEx w/.067% Acelepry | 50 Lb Bag                                                                                                     | LB_WAP-021",42.49,"Bag"]
["Performance Nutritution","PN_KMS-001","Krystal Klear® Mg","3% Magnesium","2x2.5 Gallon","Krystal Klear® Mg | 3% Magnesium | 2x2.5 Gallon                                                                                                     | PN_KMS-001",46.2,"Gallon"]
["Performance Nutritution","PN_KMS-002","Krystal Klear® Mn","5% Manganese","2x2.5 Gallon","Krystal Klear® Mn | 5% Manganese | 2x2.5 Gallon                                                                                                     | PN_KMS-002",43.1,"Gallon"]
["Performance Nutritution","PN_KMS-003","Krystal Klear® ResQ","8-0-2 with 2% Fe, 0.5% Mg, 0.5% Mn, 0.25% B, Cu, Zn","2x2.5 Gallon","Krystal Klear® ResQ | 8-0-2 with 2% Fe, 0.5% Mg, 0.5% Mn, 0.25% B, Cu, Zn | 2x2.5 Gallon                                                                                                     | PN_KMS-003",52.4,"Gallon"]
["Performance Nutritution","PN_KMS-004","Krystal Klear® Turf Mix","3% Fe, 1% Mn, 0.25% Cu, 0.25% B","2x2.5 Gallon","Krystal Klear® Turf Mix | 3% Fe, 1% Mn, 0.25% Cu, 0.25% B | 2x2.5 Gallon                                                                                                     | PN_KMS-004",46.7,"Gallon"]
["Performance Nutritution","PN_KMS-005","Krystal Klear® Zn","9% Zinc","2x2.5 Gallon","Krystal Klear® Zn | 9% Zinc | 2x2.5 Gallon                                                                                                     | PN_KMS-005",46.7,"Gallon"]
["Performance Nutritution","PN_KMS-006","LidoQuest® 6-12-12","72% SRN and 1% Fe and 0.3% Mn","2x2.5 Gallon","LidoQuest® 6-12-12 | 72% SRN and 1% Fe and 0.3% Mn | 2x2.5 Gallon                                                                                                     | PN_KMS-006",25.1,"Gallon"]
["Performance Nutritution","PN_KMS-007","LidoQuest® 18-3-6 ","50% SRN and 0.01% B, 0.1% Fe and 0.05% Mn ","2x2.5 Gallon","LidoQuest® 18-3-6  | 50% SRN and 0.01% B, 0.1% Fe and 0.05% Mn  | 2x2.5 Gallon                                                                                                     | PN_KMS-007",25.45,"Gallon"]
["Performance Nutritution","PN_KMS-008","LidoQuest® 30-0-0","50% SRN","2x2.5 Gallon","LidoQuest® 30-0-0 | 50% SRN | 2x2.5 Gallon                                                                                                     | PN_KMS-008",22.65,"Gallon"]
["Performance Nutritution","PN_KMS-009","KaPre® Embella","Patented Soil Amendment","2x2.5 Gallon","KaPre® Embella | Patented Soil Amendment | 2x2.5 Gallon                                                                                                     | PN_KMS-009",66.8,"Gallon"]
["Performance Nutritution","PN_KMS-010","KaPre® ExAlt","Soil Surfactant & Fertilizer Additive","2x2.5 Gallon","KaPre® ExAlt | Soil Surfactant & Fertilizer Additive | 2x2.5 Gallon                                                                                                     | PN_KMS-010",108.9,"Gallon"]
["Performance Nutritution","PN_KNM-001","Argosy RF","Rain-Fast Adjuvant for Pesticide Applications","2x2.5 Gallon","Argosy RF | Rain-Fast Adjuvant for Pesticide Applications | 2x2.5 Gallon                                                                                                     | PN_KNM-001",82.61,"Gallon"]
["Performance Nutritution","PN_KNM-002","Vibrant® Green","18-3-4 with 1% Fe, 0.1% Mn, Zn & 0.025% B with organic compounds","2x2.5 Gallon","Vibrant® Green | 18-3-4 with 1% Fe, 0.1% Mn, Zn & 0.025% B with organic compounds | 2x2.5 Gallon                                                                                                     | PN_KNM-002",36.35,"Gallon"]
["Performance Nutritution","PN_KNM-003","Vibrant® Blue","15-3-5 with 0.5% Fe, 0.1% Mn, Cu and Zn & 0.025% B plus organic compounds","2x2.5 Gallon","Vibrant® Blue | 15-3-5 with 0.5% Fe, 0.1% Mn, Cu and Zn & 0.025% B plus organic compounds | 2x2.5 Gallon                                                                                                     | PN_KNM-003",34.549999999999997,"Gallon"]
["Performance Nutritution","PN_KNM-004","Vibrant® Red","3-6-12 with 0.1% Cu, Fe, Mn and Zn, 0.05% Si & 0.025% B plus organic compounds","2x2.5 Gallon","Vibrant® Red | 3-6-12 with 0.1% Cu, Fe, Mn and Zn, 0.05% Si & 0.025% B plus organic compounds | 2x2.5 Gallon                                                                                                     | PN_KNM-004",36.35,"Gallon"]
["Performance Nutritution","PN_KNM-005","Krystal Klear® B","5% Boron","2x2.5 Gallon","Krystal Klear® B | 5% Boron | 2x2.5 Gallon                                                                                                     | PN_KNM-005",29.7,"Gallon"]
["Performance Nutritution","PN_KNM-006","Krystal Klear® Ca","3% Calcium","2x2.5 Gallon","Krystal Klear® Ca | 3% Calcium | 2x2.5 Gallon                                                                                                     | PN_KNM-006",29.7,"Gallon"]
["Performance Nutritution","PN_KNM-007","Krystal Klear® Cu","5% Copper","2x2.5 Gallon","Krystal Klear® Cu | 5% Copper | 2x2.5 Gallon                                                                                                     | PN_KNM-007",49.3,"Gallon"]
["Performance Nutritution","PN_KNM-008","Krystal Klear® Fe","4% Iron","2x2.5 Gallon","Krystal Klear® Fe | 4% Iron | 2x2.5 Gallon                                                                                                     | PN_KNM-008",41.1,"Gallon"]
["Performance Nutritution","PN_LSF-001","KaPre® KelpPlus","Sea Kelp plus 17 Amino Acids and Vitamin C","2x2.5 Gallon","KaPre® KelpPlus | Sea Kelp plus 17 Amino Acids and Vitamin C | 2x2.5 Gallon                                                                                                     | PN_LSF-001",36.950000000000003,"Gallon"]
["Performance Nutritution","PN_LSF-002","KaPre® PhoNix","Patented Stress-Fighting Solution","2x2.5 Gallon","KaPre® PhoNix | Patented Stress-Fighting Solution | 2x2.5 Gallon                                                                                                     | PN_LSF-002",130,"Gallon"]
["Performance Nutritution","PN_LSF-003","KaPre® Spectra","Concentrated Fulvic Acid Solution","2x2.5 Gallon","KaPre® Spectra | Concentrated Fulvic Acid Solution | 2x2.5 Gallon                                                                                                     | PN_LSF-003",110.1,"Gallon"]
["Performance Nutritution","PN_NEF-001","LidoQuest® FeMn","10% Fe and 3% Mn","25 Lb Bag","LidoQuest® FeMn | 10% Fe and 3% Mn | 25 Lb Bag                                                                                                     | PN_NEF-001",9.3000000000000007,"Lb"]
["Performance Nutritution","PN_NEF-002","LidoQuest® FeMn&Mg","4.33% Fe, 4.33% Mn and 2% Mg","25 Lb Bag","LidoQuest® FeMn&Mg | 4.33% Fe, 4.33% Mn and 2% Mg | 25 Lb Bag                                                                                                     | PN_NEF-002",9.3000000000000007,"Lb"]
["Performance Nutritution","PN_NEF-003","NutriSmart®- B  SGN 150","0-0-0 - OMRI Listed Soil Inoculant","50 Lb Bag","NutriSmart®- B  SGN 150 | 0-0-0 - OMRI Listed Soil Inoculant | 50 Lb Bag                                                                                                     | PN_NEF-003",0.71,"Lb"]
["Performance Nutritution","PN_NEF-004","NutriSmart®- B  SGN 250","0-0-0 - OMRI Listed Soil Inoculant","50 Lb Bag","NutriSmart®- B  SGN 250 | 0-0-0 - OMRI Listed Soil Inoculant | 50 Lb Bag                                                                                                     | PN_NEF-004",0.71,"Lb"]
["Performance Nutritution","PN_NPF-001","NutriSmart®- SB  SGN 250*","0-0-0 - OMRI Listed Soil Inoculant","50 Lb Bag","NutriSmart®- SB  SGN 250* | 0-0-0 - OMRI Listed Soil Inoculant | 50 Lb Bag                                                                                                     | PN_NPF-001",0.59,"Lb"]
["Performance Nutritution","PN_NPF-002","NutriSmart 50 WP","0-0-0 - OMRI Listed Soil Inoculant","25 Lb Bag","NutriSmart 50 WP | 0-0-0 - OMRI Listed Soil Inoculant | 25 Lb Bag                                                                                                     | PN_NPF-002",60,"2.5 Lb"]
["Performance Nutritution","PN_PFS-001","Prudent® 42cw","15-0-0 with 42% PO3  - formulated with urea phosphite","2x2.5 Gallon","Prudent® 42cw | 15-0-0 with 42% PO3  - formulated with urea phosphite | 2x2.5 Gallon                                                                                                     | PN_PFS-001",65,"Gallon"]
["Performance Nutritution","PN_PFS-002","Prudent® 44","15-0-0 with 42-44% PO3  - formulated with urea phosphite","2x2.5 Gallon","Prudent® 44 | 15-0-0 with 42-44% PO3  - formulated with urea phosphite | 2x2.5 Gallon                                                                                                     | PN_PFS-002",65,"Gallon"]
["Performance Nutritution","PN_PFS-003","Agra Rouse®","0.05% Cytokinin, 0.05% Gibberellic acid & 0.09% IBA","1 Gallon Bottle","Agra Rouse® | 0.05% Cytokinin, 0.05% Gibberellic acid & 0.09% IBA | 1 Gallon Bottle                                                                                                     | PN_PFS-003",279.10000000000002,"Gallon"]
["Performance Nutritution","PN_PFS-004","Incite®","0.09% Cytokinin, 0.05% Gibberellic acid & 0.09% IBA","1 Gallon Bottle","Incite® | 0.09% Cytokinin, 0.05% Gibberellic acid & 0.09% IBA | 1 Gallon Bottle                                                                                                     | PN_PFS-004",279.10000000000002,"Gallon"]
["Performance Nutritution","PN_PFS-005","Kelpene GPX","Kelpene GPX","2x2.5 Gallon","Kelpene GPX | Kelpene GPX | 2x2.5 Gallon                                                                                                     | PN_PFS-005",121,"Gallon"]
["Performance Nutritution","PN_PFS-006","Z.one® T&O 250, SGN 150","Patented Soil Conditioner w KaPre® Soil Amendments","50 Lb Bag","Z.one® T&O 250, SGN 150 | Patented Soil Conditioner w KaPre® Soil Amendments | 50 Lb Bag                                                                                                     | PN_PFS-006",1,"Lb"]
["Performance Nutritution","PN_PFS-007","Z.one® VitaSmart, SGN 150","Patented Blend of Z.one® T&O-250 and NutriSmart®-B","50 Lb Bag","Z.one® VitaSmart, SGN 150 | Patented Blend of Z.one® T&O-250 and NutriSmart®-B | 50 Lb Bag                                                                                                     | PN_PFS-007",1.05,"Lb"]
["Performance Nutritution","PN_PFS-008","Black Sea Kelp","OMRI listed 1-1-17 with 9.87% Humic Acid","2.5 Gallon","Black Sea Kelp | OMRI listed 1-1-17 with 9.87% Humic Acid | 2.5 Gallon                                                                                                     | PN_PFS-008",30.35,"2.5 Gallon"]
["Performance Nutritution","PN_PFS-009","Fish Hydrolysate","OMRI listed 2-3-1","2.5 Gallon","Fish Hydrolysate | OMRI listed 2-3-1 | 2.5 Gallon                                                                                                     | PN_PFS-009",17.75,"2.5 Gallon"]
["Performance Nutritution","PN_PFS-010","Liquid Humate Plus ","OMRI listed 10.33%  Humic acid ","2.5 Gallon","Liquid Humate Plus  | OMRI listed 10.33%  Humic acid  | 2.5 Gallon                                                                                                     | PN_PFS-010",21.85,"2.5 Gallon"]
["Performance Nutritution","PN_PFS-011","Microbac  ","OMRI listed Mycorrhizal Inoculum","2.5 Gallon","Microbac   | OMRI listed Mycorrhizal Inoculum | 2.5 Gallon                                                                                                     | PN_PFS-011",85.75,"2.5 Gallon"]
["Performance Nutritution","PN_PFS-012","VermaPlex ","OMRI Listed Premium Worm Casting Extract ","2.5 Gallon","VermaPlex  | OMRI Listed Premium Worm Casting Extract  | 2.5 Gallon                                                                                                     | PN_PFS-012",22,"2.5 Gallon"]
["Performance Nutritution","PN_PFS-013","4-4-2 with 9% Ca ","Greens and fairway grade","40 Lb Bag","4-4-2 with 9% Ca  | Greens and fairway grade | 40 Lb Bag                                                                                                     | PN_PFS-013",1.6,"Lb"]
["Performance Nutritution","PN_PFS-014","Black Castings ","OMRI listed worm castings","40 Lb Bag","Black Castings  | OMRI listed worm castings | 40 Lb Bag                                                                                                     | PN_PFS-014",0.85,"Lb"]
["Performance Nutritution","PN_PFS-015","Nutri-Cast ","OMRI listed 3-4-2 (worm castings/poultry manure)","40 Lb Bag","Nutri-Cast  | OMRI listed 3-4-2 (worm castings/poultry manure) | 40 Lb Bag                                                                                                     | PN_PFS-015",1,"Lb"]
["Performance Nutritution","PN_PFS-016","NutriSmart®- B  SGN 150*  ","0-0-0 • OMRI Listed • Soil Innoculant","40 Lb Bag","NutriSmart®- B  SGN 150*   | 0-0-0 • OMRI Listed • Soil Innoculant | 40 Lb Bag                                                                                                     | PN_PFS-016",0.9,"Lb"]
["Performance Nutritution","PN_PFS-017","VermaCompost Standard Grade ",".98-.33-.73","40 Lb Bag","VermaCompost Standard Grade  | .98-.33-.73 | 40 Lb Bag                                                                                                     | PN_PFS-017",0.46,"Lb"]
["Performance Nutritution","PN_PFS-018","VermaCompost Fine Grade ",".98-.33-.73","40 Lb Bag","VermaCompost Fine Grade  | .98-.33-.73 | 40 Lb Bag                                                                                                     | PN_PFS-018",0.51,"Lb"]
["Performance Nutritution","PN_PFS-019","VermaMaxx ","OMRI listed 3-4-3 (poultry manure)","40 Lb Bag","VermaMaxx  | OMRI listed 3-4-3 (poultry manure) | 40 Lb Bag                                                                                                     | PN_PFS-019",1,"Lb"]
["Performance Nutritution","PN_PGR-001","Pennamin® Mn","10-0-0 + 7% Mn - water soluble","8x5 Lb","Pennamin® Mn | 10-0-0 + 7% Mn - water soluble | 8x5 Lb                                                                                                     | PN_PGR-001",14.6,"Lb"]
["Performance Nutritution","PN_PGR-002","Pennamin® Si","10-0-0 + 4% Si","8x5 Lb","Pennamin® Si | 10-0-0 + 4% Si | 8x5 Lb                                                                                                     | PN_PGR-002",19.8,"Lb"]
["Performance Nutritution","PN_PGR-003","Nutrol®","Broad Spectrum Fungicide, Fertilizer and Tank Buffer","8 Lb Bag","Nutrol® | Broad Spectrum Fungicide, Fertilizer and Tank Buffer | 8 Lb Bag                                                                                                     | PN_PGR-003",3.55,"Lb"]
["Performance Nutritution","PN_PMP-001","Pennamin® Ca","7-0-0 + 14% Ca","8x5 Lb","Pennamin® Ca | 7-0-0 + 14% Ca | 8x5 Lb                                                                                                     | PN_PMP-001",15.4,"Lb"]
["Performance Nutritution","PN_PMP-002","Pennamin® Ca&Mg","8-0-0 + 10% Ca, 8% Mg","8x5 Lb","Pennamin® Ca&Mg | 8-0-0 + 10% Ca, 8% Mg | 8x5 Lb                                                                                                     | PN_PMP-002",14.6,"Lb"]
["Performance Nutritution","PN_PMP-003","Pennamin® Driver - P","12-0-0 Water Soluble Amino Acids","8x5 Lb","Pennamin® Driver - P | 12-0-0 Water Soluble Amino Acids | 8x5 Lb                                                                                                     | PN_PMP-003",16.2,"Lb"]
["Performance Nutritution","PN_PMP-004","Pennamin® Fe&Mn","9-0-0+4%Fe+3%Mn - Water Soluble","8x5 Lb","Pennamin® Fe&Mn | 9-0-0+4%Fe+3%Mn - Water Soluble | 8x5 Lb                                                                                                     | PN_PMP-004",14.6,"Lb"]
["Performance Nutritution","PN_PMP-005","Pennamin® High-K","6-0-15 + 9% Ca - Water Soluble","8x5 Lb","Pennamin® High-K | 6-0-15 + 9% Ca - Water Soluble | 8x5 Lb                                                                                                     | PN_PMP-005",14.6,"Lb"]
["Performance Nutritution","PN_PMP-006","Pennamin® Mg","12-0-0 +12%Mg - Water Soluble ","8x5 Lb","Pennamin® Mg | 12-0-0 +12%Mg - Water Soluble  | 8x5 Lb                                                                                                     | PN_PMP-006",14.6,"Lb"]
["Performance Nutritution","PN_PMP-007","Pennamin® Perfect-K","8-0-9 + 5% Ca, 2% Mg, 0.1% Fe, 0.05% Mn, 0.02% B, 0.02% Zn & 0.01% Cu","8x5 Lb","Pennamin® Perfect-K | 8-0-9 + 5% Ca, 2% Mg, 0.1% Fe, 0.05% Mn, 0.02% B, 0.02% Zn & 0.01% Cu | 8x5 Lb                                                                                                     | PN_PMP-007",16.2,"Lb"]
["Turf Protection","TP_WAP-001","Proplant","Banol®","1 Gallon","Proplant | Banol® | 1 Gallon                                                                                                     | TP_WAP-001",420,"Gallon"]
["Turf Protection","TP_WAP-002","Iprodione 2F","Chipco 26019®","2x2.5 Gallon","Iprodione 2F | Chipco 26019® | 2x2.5 Gallon                                                                                                     | TP_WAP-002",166.7,"Gallon"]
["Turf Protection","TP_WAP-003","Fosetyl-Al 80%","Chipco Signature®","11 Lb","Fosetyl-Al 80% | Chipco Signature® | 11 Lb                                                                                                     | TP_WAP-003",19.75,"Pound"]
["Turf Protection","TP_WAP-004","Thiophanate Methyl 46.2%","Cleary's 3336®","2x2.5 Gallon","Thiophanate Methyl 46.2% | Cleary's 3336® | 2x2.5 Gallon                                                                                                     | TP_WAP-004",143.33000000000001,"Jug"]
["Turf Protection","TP_WAP-005","Chlorothalonil 82.5DF ","Daconil Ultrex®","2x10 Lb","Chlorothalonil 82.5DF  | Daconil Ultrex® | 2x10 Lb                                                                                                     | TP_WAP-005",108.87,"Bag"]
["Turf Protection","TP_WAP-006","Chlorothalonil 720 ","Daconil Weatherstik®","2x2.5 Gallon","Chlorothalonil 720  | Daconil Weatherstik® | 2x2.5 Gallon                                                                                                     | TP_WAP-006",140,"Jug"]
["Turf Protection","TP_WAP-007","Manzate Max T&O","Dithane®","2x2.5 Gallon","Manzate Max T&O | Dithane® | 2x2.5 Gallon                                                                                                     | TP_WAP-007",109,"Jug"]
["Turf Protection","TP_WAP-008","Manzate Pro-Stick T&O","Dithane®","48 Lb","Manzate Pro-Stick T&O | Dithane® | 48 Lb                                                                                                     | TP_WAP-008",5.8,"Pound"]
["Turf Protection","TP_WAP-009","Azoxystrobin/Propiconazole","Headway®","1 Gallon","Azoxystrobin/Propiconazole | Headway® | 1 Gallon                                                                                                     | TP_WAP-009",276.64999999999998,"Gallon"]
["Turf Protection","TP_WAP-010","Azoxystrobin 50 WDG ","Heritage® 50 WDG","6x1 Lb","Azoxystrobin 50 WDG  | Heritage® 50 WDG | 6x1 Lb                                                                                                     | TP_WAP-010",185,"Pound"]
["Turf Protection","TP_WAP-011","Azoxystrobin 2SC","Heritage® TL","1 Gallon","Azoxystrobin 2SC | Heritage® TL | 1 Gallon                                                                                                     | TP_WAP-011",426.6,"Gallon"]
["Turf Protection","TP_WAP-012","Azoxystrobin/Tebuconazole","PrimeSource™ Exclusive","1 Gallon","Azoxystrobin/Tebuconazole | PrimeSource™ Exclusive | 1 Gallon                                                                                                     | TP_WAP-012",385,"Gallon"]
["Turf Protection","TP_WAP-013","Propiconazole 14.3%","Spectator™, Banner Maxx® ","1 Gallon","Propiconazole 14.3% | Spectator™, Banner Maxx®  | 1 Gallon                                                                                                     | TP_WAP-013",66.75,"Gallon"]
["Turf Protection","TP_WAP-014","Mefenoxam 22.5%","Subdue Maxx® ","1 Gallon","Mefenoxam 22.5% | Subdue Maxx®  | 1 Gallon                                                                                                     | TP_WAP-014",444.66,"Gallon"]
["Turf Protection","TP_WAP-015","Tebuconazole 3.6%","Torque®","1 Gallon","Tebuconazole 3.6% | Torque® | 1 Gallon                                                                                                     | TP_WAP-015",76.7,"Gallon"]
["Turf Protection","TP_WAP-016","Prodiamine 4SC ","Barricade 4L ®","2x2.5 Gallon","Prodiamine 4SC  | Barricade 4L ® | 2x2.5 Gallon                                                                                                     | TP_WAP-016",240.66,"Jug"]
["Turf Protection","TP_WAP-017","Prodiamine 65 WDG","Barricade 65WDG®","6x5 Lb","Prodiamine 65 WDG | Barricade 65WDG® | 6x5 Lb                                                                                                     | TP_WAP-017",70.67,"Jug"]
["Turf Protection","TP_WAP-018","Triad Select™","Contains 2,4-D Amine, MCPA, and Dicamba","2x2.5 Gallon","Triad Select™ | Contains 2,4-D Amine, MCPA, and Dicamba | 2x2.5 Gallon                                                                                                     | TP_WAP-018",125,"Case"]
["Turf Protection","TP_WAP-019","Dithiopyr 40 WSB","Dimension Ultra®","4x5 Oz bag","Dithiopyr 40 WSB | Dimension Ultra® | 4x5 Oz bag                                                                                                     | TP_WAP-019",63.66,"Bag"]
["Turf Protection","TP_WAP-020","Dithiopyr 2L","Dimension® 2EW","4x1 Gallon","Dithiopyr 2L | Dimension® 2EW | 4x1 Gallon                                                                                                     | TP_WAP-020",219.33,"Gallon"]
["Turf Protection","TP_WAP-021","Sulfentrazone 4L ","Dismiss® ","0.5 Gallon","Sulfentrazone 4L  | Dismiss®  | 0.5 Gallon                                                                                                     | TP_WAP-021",250,"Jug"]
["Turf Protection","TP_WAP-022","Quinclorac 1.5L ","Drive XLR8®","0.5 Gallon","Quinclorac 1.5L  | Drive XLR8® | 0.5 Gallon                                                                                                     | TP_WAP-022",53.35,"Jug"]
["Turf Protection","TP_WAP-023","Quinclorac 75DF","Drive® 75DF","6x1 Lb","Quinclorac 75DF | Drive® 75DF | 6x1 Lb                                                                                                     | TP_WAP-023",45.3,"Pound"]
["Turf Protection","TP_WAP-024","Rometsol","Manor® 60DF","8 Oz","Rometsol | Manor® 60DF | 8 Oz                                                                                                     | TP_WAP-024",42.6,"Bottle"]
["Turf Protection","TP_WAP-025","Monument 75 WG ","Monument™","5x5 Gram","Monument 75 WG  | Monument™ | 5x5 Gram                                                                                                     | TP_WAP-025",250,"Case"]
["Turf Protection","TP_WAP-026","X-Out Select™ ","non-Glyphosate alternative - Finale® ","2x2.5 Gallon","X-Out Select™  | non-Glyphosate alternative - Finale®  | 2x2.5 Gallon                                                                                                     | TP_WAP-026",63.3,"Gallon"]
["Turf Protection","TP_WAP-027","Pendulum® 3.3 EC ","Pendalum® ","2x2.5 Gallon","Pendulum® 3.3 EC  | Pendalum®  | 2x2.5 Gallon                                                                                                     | TP_WAP-027",90.76,"Jug"]
["Turf Protection","TP_WAP-028","Revolver® ","Revolver® Sulfanated Urea","4x1 Quart","Revolver®  | Revolver® Sulfanated Urea | 4x1 Quart                                                                                                     | TP_WAP-028",318.14999999999998,"Quart"]
["Turf Protection","TP_WAP-029","Diquat 2L","Reward® ","2x2.5 Gallon","Diquat 2L | Reward®  | 2x2.5 Gallon                                                                                                     | TP_WAP-029",171.65,"Jug"]
["Turf Protection","TP_WAP-030","Oxadiazion 2G","Ronstar®","50 Lb","Oxadiazion 2G | Ronstar® | 50 Lb                                                                                                     | TP_WAP-030",77.650000000000006,"Bag"]
["Turf Protection","TP_WAP-031","Oxadiazion SC","Ronstar®","2x2.5 Gallon","Oxadiazion SC | Ronstar® | 2x2.5 Gallon                                                                                                     | TP_WAP-031",766.2,"Case"]
["Turf Protection","TP_WAP-032","Ranger Pro Herb ","Round Up","2x2.5 Gallon","Ranger Pro Herb  | Round Up | 2x2.5 Gallon                                                                                                     | TP_WAP-032",46,"Jug"]
["Turf Protection","TP_WAP-033","Ranger Pro Herb ","Round Up","30 Gallon drum","Ranger Pro Herb  | Round Up | 30 Gallon drum                                                                                                     | TP_WAP-033",528,"Drum"]
["Turf Protection","TP_WAP-034","Halosulfuron-methyl 75%","Sedgehammer","10x1.33 Gram","Halosulfuron-methyl 75% | Sedgehammer | 10x1.33 Gram                                                                                                     | TP_WAP-034",52.6,"Bottle"]
["Turf Protection","TP_WAP-035","Metricor 75 DF","Sencor®","2x10 Lb","Metricor 75 DF | Sencor® | 2x10 Lb                                                                                                     | TP_WAP-035",22.4,"Pound"]
["Turf Protection","TP_WAP-036","T/I 2.5 G","Snapshot®","50 Lb","T/I 2.5 G | Snapshot® | 50 Lb                                                                                                     | TP_WAP-036",79.33,"Bag"]
["Turf Protection","TP_WAP-037","Tenacity","Tenacity®","1 Gallon","Tenacity | Tenacity® | 1 Gallon                                                                                                     | TP_WAP-037",775,"Gallon"]
["Turf Protection","TP_WAP-038","Tebuconazole 3.6 F","Torque®","4x1 Gallon","Tebuconazole 3.6 F | Torque® | 4x1 Gallon                                                                                                     | TP_WAP-038",76.7,"Gallon"]
["Turf Protection","TP_WAP-039","Abamectin 0.15EC ","Avid® ","4x1 Gallon","Abamectin 0.15EC  | Avid®  | 4x1 Gallon                                                                                                     | TP_WAP-039",200,"Gallon"]
["Turf Protection","TP_WAP-040","Fipronil .1G ","Chipco Choice®","50 Lb","Fipronil .1G  | Chipco Choice® | 50 Lb                                                                                                     | TP_WAP-040",148.66,"Bag"]
["Turf Protection","TP_WAP-041","Cyper WSP","Cypermethrin","4x9.5 Gram","Cyper WSP | Cypermethrin | 4x9.5 Gram                                                                                                     | TP_WAP-041",25.32,"Bag"]
["Turf Protection","TP_WAP-042","Sulfentrazone 4 SC","Dismiss®","4x64 Oz","Sulfentrazone 4 SC | Dismiss® | 4x64 Oz                                                                                                     | TP_WAP-042",250,"Each"]
["Turf Protection","TP_WAP-043","Nemamectin 0.7 SC ","Divanem® nematicide","4x1 Gallon","Nemamectin 0.7 SC  | Divanem® nematicide | 4x1 Gallon                                                                                                     | TP_WAP-043",2200,"Gallon"]
["Turf Protection","TP_WAP-044","Todal ","Divanem® nematicide","4x1 Gallon","Todal  | Divanem® nematicide | 4x1 Gallon                                                                                                     | TP_WAP-044",237.66,"Gallon"]
["Turf Protection","TP_WAP-045","Chlorpyrifos 4E","Dursban® 4E","2x2.5 Gallon","Chlorpyrifos 4E | Dursban® 4E | 2x2.5 Gallon                                                                                                     | TP_WAP-045",150,"Jug"]
["Turf Protection","TP_WAP-046","Extinguish Fire Ant Bait","Extinguish Fire Ant Bait","25 Lb","Extinguish Fire Ant Bait | Extinguish Fire Ant Bait | 25 Lb                                                                                                     | TP_WAP-046",9.1199999999999992,"Pound"]
["Turf Protection","TP_WAP-047","Extinguish Fire Ant Bait","Extinguish Fire Ant Bait","8x1.5 Lb","Extinguish Fire Ant Bait | Extinguish Fire Ant Bait | 8x1.5 Lb                                                                                                     | TP_WAP-047",13.35,"Pound"]
["Turf Protection","TP_WAP-048","Taurus Trio G","Fipronyl/Bifenthrin/Lamda Cyhalothrin","30 pound","Taurus Trio G | Fipronyl/Bifenthrin/Lamda Cyhalothrin | 30 pound                                                                                                     | TP_WAP-048",70,"Bag"]
["Turf Protection","TP_WAP-049","100 Acre Mole Cricket Pallet","Imidacloprid 2F, Bifenthrin G/N & PS804","Pallet","100 Acre Mole Cricket Pallet | Imidacloprid 2F, Bifenthrin G/N & PS804 | Pallet                                                                                                     | TP_WAP-049",3100,"Each"]
["Turf Protection","TP_WAP-050","50 Acre Mole Cricket Pallet","Imidacloprid 2F, Bifenthrin G/N & PS804","Pallet","50 Acre Mole Cricket Pallet | Imidacloprid 2F, Bifenthrin G/N & PS804 | Pallet                                                                                                     | TP_WAP-050",1550,"Each"]
["Turf Protection","TP_WAP-051","Imidacloprid 0.5G","Merit 0.5G®","30 Lb","Imidacloprid 0.5G | Merit 0.5G® | 30 Lb                                                                                                     | TP_WAP-051",26.05,"Bag"]
["Turf Protection","TP_WAP-052","Imidacloprid 2F","Merit 2F, Premise","1 Gallon","Imidacloprid 2F | Merit 2F, Premise | 1 Gallon                                                                                                     | TP_WAP-052",60,"Gallon"]
["Turf Protection","TP_WAP-053","Imidacloprid 75WSB","Merit 75 WSP","88x1.6 Oz","Imidacloprid 75WSB | Merit 75 WSP | 88x1.6 Oz                                                                                                     | TP_WAP-053",471.86,"Drum"]
["Turf Protection","TP_WAP-054","Wasp Freeze®","Original Formulation","12x17.5 Oz","Wasp Freeze® | Original Formulation | 12x17.5 Oz                                                                                                     | TP_WAP-054",125.28,"Case"]
["Turf Protection","TP_WAP-055","Acephate 90 Prill ","Orthene®","8x5 Lb","Acephate 90 Prill  | Orthene® | 8x5 Lb                                                                                                     | TP_WAP-055",10,"Pound"]
["Turf Protection","TP_WAP-056","Lambda-cyhalothrin 9.7%","Scimitar®","1 Gallon","Lambda-cyhalothrin 9.7% | Scimitar® | 1 Gallon                                                                                                     | TP_WAP-056",77.400000000000006,"Gallon"]
["Turf Protection","TP_WAP-057","Zelto Bionematicide (2.5 Gal Jug)","Prime Source™ Exclusive nematicide","2x2.5 Gallon","Zelto Bionematicide (2.5 Gal Jug) | Prime Source™ Exclusive nematicide | 2x2.5 Gallon                                                                                                     | TP_WAP-057",516.6,"Jug"]
["Turf Protection","TP_WAP-058","Bifenthrin G/N 7.9F ","Talstar®","1 Gallon","Bifenthrin G/N 7.9F  | Talstar® | 1 Gallon                                                                                                     | TP_WAP-058",46.7,"Gallon"]
["Turf Protection","TP_WAP-059","Fipronil 0.0143G","Top Choice®","30 Lb","Fipronil 0.0143G | Top Choice® | 30 Lb                                                                                                     | TP_WAP-059",54.33,"Bag"]
["Turf Protection","TP_WAP-060","Trinexapac-ethyl 12%","Primo Maxx®","2x1 Gallon","Trinexapac-ethyl 12% | Primo Maxx® | 2x1 Gallon                                                                                                     | TP_WAP-060",140.69999999999999,"Gallon"]
["Turf Protection","TP_WAP-061","Trinexapac-ethyl 12%","Primo Maxx®","2.5 Gallon","Trinexapac-ethyl 12% | Primo Maxx® | 2.5 Gallon                                                                                                     | TP_WAP-061",344.65,"Jug"]
["Venture Line","VL_WAP-001","GV00142-AME","Venture CaConditioner (Liquid Gypsum Substitute)","2 x 2.5 Gallon","GV00142-AME | Venture CaConditioner (Liquid Gypsum Substitute) | 2 x 2.5 Gallon                                                                                                     | VL_WAP-001",41,"Jug"]
["Venture Line","VL_WAP-002","GV00180-AME","Venture Ca Conditioner ","265 gal Tote","GV00180-AME | Venture Ca Conditioner  | 265 gal Tote                                                                                                     | VL_WAP-002",18.5,"Gallon"]
["Venture Line","VL_WAP-003","GV00161-AME","Immerse F Fairway ","2 x 2.5 Gallon","GV00161-AME | Immerse F Fairway  | 2 x 2.5 Gallon                                                                                                     | VL_WAP-003",75,"Jug"]
["Venture Line","VL_WAP-004","GV00145-AME","Immerse F Fairway ","275 gal Tote","GV00145-AME | Immerse F Fairway  | 275 gal Tote                                                                                                     | VL_WAP-004",22,"Gallon"]
["Venture Line","VL_WAP-005","GV00172-AME","Immerse F Wetting agent","55 gal Drum","GV00172-AME | Immerse F Wetting agent | 55 gal Drum                                                                                                     | VL_WAP-005",24.27,"Gallon"]
["Venture Line","VL_WAP-006","GV00148-AME","Venture Immerse GT Granular","50 LB Bag","GV00148-AME | Venture Immerse GT Granular | 50 LB Bag                                                                                                     | VL_WAP-006",134,"Bag"]
["Venture Line","VL_WAP-007","GV00176-AME","VG Immerse GT Plus Tablets ","6x8 oz","GV00176-AME | VG Immerse GT Plus Tablets  | 6x8 oz                                                                                                     | VL_WAP-007",104.6,"Box"]
["Venture Line","VL_WAP-008","GV00135-AME","Venture AMS 80/20 Surfactant","4 x 1 Gallon","GV00135-AME | Venture AMS 80/20 Surfactant | 4 x 1 Gallon                                                                                                     | VL_WAP-008",17,"Gallon"]
["Venture Line","VL_WAP-009","GV00137-AME","Venture Cure","2 x 2.5 Gallon","GV00137-AME | Venture Cure | 2 x 2.5 Gallon                                                                                                     | VL_WAP-009",200,"Jug"]
["Venture Line","VL_WAP-010","GV00181-AME","Venture Cure Fwy ","30 gal Drum","GV00181-AME | Venture Cure Fwy  | 30 gal Drum                                                                                                     | VL_WAP-010",25.5,"Gallon"]
["Venture Line","VL_WAP-011","GV00143-AME","Venture Cure Plus","2 x 2.5 Gallon","GV00143-AME | Venture Cure Plus | 2 x 2.5 Gallon                                                                                                     | VL_WAP-011",230,"Jug"]
["Venture Line","VL_WAP-012","GV00150-AME","Venture Cure Plus ","55 gal Drum","GV00150-AME | Venture Cure Plus  | 55 gal Drum                                                                                                     | VL_WAP-012",88.33,"Gal"]
["Venture Line","VL_WAP-013","GV00140-AME","Venture Hume Tablets","6 x 8 Ounce","GV00140-AME | Venture Hume Tablets | 6 x 8 Ounce                                                                                                     | VL_WAP-013",130,"Box"]
["Venture Line","VL_WAP-014","GV00160-AME","Venture Hume Tablets (10 Lb)","Each","GV00160-AME | Venture Hume Tablets (10 Lb) | Each                                                                                                     | VL_WAP-014",179.2,"Each"]
["Venture Line","VL_WAP-015","GV00141-AME","Venture Applicator","Each","GV00141-AME | Venture Applicator | Each                                                                                                     | VL_WAP-015",108,"Each"]
["Venture Line","VL_WAP-016","GV00193-AME","Venture Quench ","2 x 2.5 Gallon","GV00193-AME | Venture Quench  | 2 x 2.5 Gallon                                                                                                     | VL_WAP-016",206.3,"Jug"]
["Venture Line","VL_WAP-017","GV00134-AME","Venture Clean Tank Cleaner","12 x 1 Quart","GV00134-AME | Venture Clean Tank Cleaner | 12 x 1 Quart                                                                                                     | VL_WAP-017",100,"Case"]
["Venture Line","VL_WAP-018","GV00139-AME","Venture Foam Buster","12 x 1 Quart","GV00139-AME | Venture Foam Buster | 12 x 1 Quart                                                                                                     | VL_WAP-018",100,"Case"]
["Venture Line","VL_WAP-019","GV00136-AME","Venture Green","4 x 1 Gallon","GV00136-AME | Venture Green | 4 x 1 Gallon                                                                                                     | VL_WAP-019",107,"Gallon"]
["Venture Line","VL_WAP-020","GV00127-AME","Venture Green ","55 gal Drum","GV00127-AME | Venture Green  | 55 gal Drum                                                                                                     | VL_WAP-020",100,"Gallon"]
["Venture Line","VL_WAP-021","GV00138-AME","Venture Renew","4 x 1 Gallon","GV00138-AME | Venture Renew | 4 x 1 Gallon                                                                                                     | VL_WAP-021",58,"Gallon"]
["Venture Line","VL_WAP-022","GV00173-AME","Ventures Alert - Tracer Red","12 x 1 Quart","GV00173-AME | Ventures Alert - Tracer Red | 12 x 1 Quart                                                                                                     | VL_WAP-022",214.9,"Case"]
["Venture Line","VL_WAP-023","GV00175-AME","VG Rapid Green Turf Paint","4 x 1 Gallon","GV00175-AME | VG Rapid Green Turf Paint | 4 x 1 Gallon                                                                                                     | VL_WAP-023",56.6,"Gallon"]
["Venture Line","VL_WAP-024","GV00192-AME","Venture Green ","12 x 1 Quart","GV00192-AME | Venture Green  | 12 x 1 Quart                                                                                                     | VL_WAP-024",340,"Case"]

{"sheet":"COMAND","index":2,"n_rows":29,"n_cols":7,"rows_kept":29,"cut":false,"hidden":true,"merged":[]}
[]
[]
[]
[]
[]
[]
[]
["Product ID","Item","Package Size","Description","Price / UOM","UOM","Total"]
["CM_WAP-001","Comand Greens Grade Bag","45 lb Bag","Comand 1/16 Greens Grade 45lb Bag",22,"Bag"]
[{"$f":"IF(B10=\"\",\"\",LEFT(A9,7)&TEXT(RIGHT(A9,3)+1,\"000\"))","v":"CM_WAP-002"},"Comand 1/8 Bag","45 lb Bag","Comand 1/8 100 45lb Bag",14,"Bag"]
["CM_WAP-003","Comand 1/8 1000 LB Sack","1000 lb Bag","Comand 1/8 1000 LB Sack",340,"Bag"]
["CM_WAP-004","Comand 1/8in Bulk Truckload","Bulk","Comand 1/8in Bulk",66,"Yard"]
["CM_WAP-005","Comand 1/4 1000 LB Sack","1000 lb Bag","Comand 1/4 1000 LB Sack",330,"Bag"]
["CM_WAP-006","Comand 1/4in Bulk Truckload","Bulk","Comand 1/4in Bulk",45,"Yard"]
["CM_WAP-007","Comand 3/8 1000 LB Sack","1000 lb Bag","Comand 3/8 1000 LB Sack",235,"Bag"]
["CM_WAP-008","Comand 3/8in Bulk Truckload","Bulk","Comand 3/8in Bulk",39,"Yard"]
["CM_WAP-009","Comand 1/2in Bulk Truckload","Bulk","Comand 1/2in Bulk",36,"Yard"]
["CM_WAP-010","Comand 3/4in Bulk Truckload","Bulk","Comand 3/4in Bulk",16.5,"Yard"]
["CM_WAP-011","Comand 1-1/4 AG Grade Truckload","Bulk","Comand 1-1/4 AG Grade",15,"Yard"]
["CM_WAP-012","Comandscape 2.0 CF Bag","2 Cu Ft Bag","Comandscape 2.0 CF Bag",8.6999999999999993,"Bag"]
["CM_WAP-013","Comandscape Plus 1000 Lb Sack","1000 lb Bag","Comandscape Plus 1000 Lb Sack",225,"Each"]
["CM_WAP-014","Comandscape Bulk Truckload","Bulk","Comandscape Bulk",35.700000000000003,"Yard"]
["CM_WAP-015","Mycro Mulch 2 Cubic Yard","2 Cu Yard bag","Mycro Mulch 2 Cubic Yard",150,"Bag"]
["CM_WAP-016","Mycro Mulch Truckload","Bulk","Mycro Mulch Bulk",27.69,"Yard"]
[{"$f":"IF(B25=\"\",\"\",LEFT(#REF!,7)&TEXT(RIGHT(#REF!,3)+1,\"000\"))","v":""}]
[""]
[""]
[""]
[""]

{"sheet":"Grigg Brothers","index":3,"n_rows":39,"n_cols":7,"rows_kept":39,"cut":false,"hidden":true,"merged":[]}
[]
[]
[]
[]
[]
[]
[]
["Product ID","Item","Package Size","Description","Price / UOM","UOM","Total"]
["GB_PFL-001","Grigg Turftopia 5-0-5","2x2.5 Gallon","5% N, 5% K, 0.2% Mn, 0.003% Mo, 0.2% Zn",192.5,"Case"]
[{"$f":"IF(B10=\"\",\"\",LEFT(A9,7)&TEXT(RIGHT(A9,3)+1,\"000\"))","v":"GB_PFL-002"},"Grigg A-O-K®","2x2.5 Gallon","A-O-K® 2-0-24",216.25,"Case"]
[{"$f":"IF(B11=\"\",\"\",LEFT(A10,7)&TEXT(RIGHT(A10,3)+1,\"000\"))","v":"GB_PFL-003"},"Grigg Carboplex®","2x2.5 Gallon","Carboplex® 6-4-4",145,"Case"]
["GB_PFL-004","Gary's Green Ultra","2x2.5 Gallon","Gary's Green Ultra 14-2-3",232,"Case"]
["GB_PFL-005","Gary's Green®","2x2.5 Gallon","Gary's Green® 18-3-4 +Fe ",210,"Case"]
["GB_PFL-006","Grigg Iron Combo 1-0-2","2x2.5 Gallon","1-0-2 w/ 0.16%B,0.13%Cu,4%Fe,1%Mn,0.8%Zn",272.5,"Case"]
["GB_PFL-007","Grigg Iron Combo 12-0-0","2x2.5 Gallon","12-0-0 w/ 5%Fe,0.5%Mn,0.5%Zn",95,"Case"]
["GB_PFL-008","Grigg Kelplex™ ","2x2.5 Gallon","Kelplex™ 1-2-2    Ascophyllum nodosum",345,"Case"]
["GB_PFL-009","Grigg Magnesium Complex","2x2.5 Gallon","Mg 5%",218,"Case"]
["GB_PFL-010","Grigg Manganese Combo","2x2.5 Gallon","1.2%Mg,0.4%Cu,5%Mn,1%Zn",242,"Case"]
["GB_PFL-011","Grigg Microburst™","2x2.5 Gallon","1%K,.04%B,.05%Cu,3.4%Fe,2.4%Mn,.01Mo,1%Zn",262.25,"Case"]
["GB_PFL-012","Grigg Nutra Green  5-10-5","2x2.5 Gallon","5-10-5 w/1%Mg,.12%B,.1%Cu,1%Fe,.5%Mn,.1%Zn",223.25,"Case"]
["GB_PFL-013","Grigg P-K Plus®","2x2.5 Gallon","P-K Plus® 3-5-17",285,"Case"]
["GB_PFL-014","Grigg Sili Kal B™","2x2.5 Gallon","Sili Kal B™ 8-0-4   ",280,"Case"]
["GB_SPL-001","Grigg Suprema®","2x2.5 Gallon","Suprema® 12-0-12",200,"Case"]
[{"$f":"IF(B24=\"\",\"\",LEFT(A23,7)&TEXT(RIGHT(A23,3)+1,\"000\"))","v":"GB_SPL-002"},"Grigg Tuff Turf®","2x2.5 Gallon","Tuff Turf® 1-0-14 ",296,"Case"]
[{"$f":"IF(B25=\"\",\"\",LEFT(A24,7)&TEXT(RIGHT(A24,3)+1,\"000\"))","v":"GB_SPL-003"},"Grigg Ultraplex®","2x2.5 Gallon","Ultraplex® 4-0-3 ",276.75,"Case"]
[{"$f":"IF(B26=\"\",\"\",LEFT(A25,7)&TEXT(RIGHT(A25,3)+1,\"000\"))","v":"GB_SPL-004"},"Grigg Bio Blend™","2x2.5 Gallon","Bio Blend™ 10-0-0",280,"Case"]
[{"$f":"IF(B27=\"\",\"\",LEFT(A26,7)&TEXT(RIGHT(A26,3)+1,\"000\"))","v":"GB_SPL-005"},"Grigg Burley Green   18-2-3","2x2.5 Gallon","Burley Green   18-2-3 slow release",130,"Case"]
["GB_SMD-001","Grigg Displace™","2x2.5 Gallon","Displace™ 9-0-0 w/ 12% Ca",240,"Case"]
[{"$f":"IF(B29=\"\",\"\",LEFT(A28,7)&TEXT(RIGHT(A28,3)+1,\"000\"))","v":"GB_SMD-002"},"Grigg Rhizonify™","2x2.5 Gallon","6-4-4 plus Amino Acids",197.5,"Case"]
[{"$f":"IF(B30=\"\",\"\",LEFT(A29,7)&TEXT(RIGHT(A29,3)+1,\"000\"))","v":"GB_SMD-003"},"Grigg Fairphyte 1-0-25","2x2.5 Gallon","Phoshite product",135,"Case"]
["GB_PGT-001","GreenPIG™","2x2.5 Gallon","GreenPIG™",896,"Case"]
[{"$f":"IF(B32=\"\",\"\",LEFT(A31,7)&TEXT(RIGHT(A31,3)+1,\"000\"))","v":"GB_PGT-002"},"7-7-7 Seven Iron™","50 Lb Bag","7-7-7 Coarse Grade",55,"Bag"]
["GB_GSG-001","7-7-7 Seven Iron™","50 Lb Bag","7-7-7 Fine Grade",55,"Bag"]
["GB_GSG-001","7-0-14 ZeroPhos®","50 Lb Bag","7-0-14 Coarse Grade",55,"Bag"]
["GB_GSG-001","7-0-14 ZeroPhos®","50 Lb Bag","7-0-14 Fine Grade",55,"Bag"]
["GB_GSG-001","10-2-4 All Natural Organic","50 Lb Bag","10-2-4 Fine Grade",57,"Bag"]
["GB_GSG-001","CK Balance™","50 Lb Bag","Fine Grade",49,"Bag"]
["GB_GSG-001","SK Balance™","50 Lb Bag","Fine Grade",50,"Bag"]
["GB_GSG-001","Z-Mendit","50 Lb Bag","Zeolite Ore",13,"Bag"]

{"sheet":"GV Water Soluables","index":4,"n_rows":13,"n_cols":7,"rows_kept":13,"cut":false,"hidden":true,"merged":[]}
[]
[]
[]
[]
[]
[null,null,null,"Golf Ventures Water Soluable Fertilizers"]
[]
["Product ID","Item","Package Size","Description","Price/UOM","UOM","Total"]
["GV_WSF-001","GV12636-PFI","25 Lb Bag","12-6-36 Water Soluble Fertilizer",32,"Bag"]
[{"$f":"IF(B10=\"\",\"\",LEFT(A9,7)&TEXT(RIGHT(A9,3)+1,\"000\"))","v":"GV_WSF-002"},"GV202020-PFI","25 Lb Bag","20-20-20 Water Soluble Fertilizer w/ Minors",32,"Bag"]
[{"$f":"IF(B11=\"\",\"\",LEFT(A10,7)&TEXT(RIGHT(A10,3)+1,\"000\"))","v":"GV_WSF-003"},"GV21331-PFI","25 Lb Bag","21-3-31 Water Soluble Fertilizer",32,"Bag"]
[{"$f":"IF(B12=\"\",\"\",LEFT(A11,7)&TEXT(RIGHT(A11,3)+1,\"000\"))","v":""}]
[{"$f":"IF(B13=\"\",\"\",LEFT(A12,7)&TEXT(RIGHT(A12,3)+1,\"000\"))","v":""}]

{"sheet":"Performance Nutritution","index":5,"n_rows":64,"n_cols":7,"rows_kept":64,"cut":false,"hidden":true,"merged":[]}
[]
[]
[]
[]
[]
[]
[]
["Product ID","Item","Package Size","Description","Price/UOM","UOM","Total"]
["PN_KNM-001","Argosy RF","2x2.5 Gallon","Rain-Fast Adjuvant for Pesticide Applications",82.61,"Gallon"]
[{"$f":"IF(B10=\"\",\"\",LEFT(A9,7)&TEXT(RIGHT(A9,3)+1,\"000\"))","v":"PN_KNM-002"},"Vibrant® Green","2x2.5 Gallon","18-3-4 with 1% Fe, 0.1% Mn, Zn & 0.025% B with organic compounds",36.35,"Gallon"]
["PN_KNM-003","Vibrant® Blue","2x2.5 Gallon","15-3-5 with 0.5% Fe, 0.1% Mn, Cu and Zn & 0.025% B plus organic compounds",34.549999999999997,"Gallon"]
["PN_KNM-004","Vibrant® Red","2x2.5 Gallon","3-6-12 with 0.1% Cu, Fe, Mn and Zn, 0.05% Si & 0.025% B plus organic compounds",36.35,"Gallon"]
["PN_KNM-005","Krystal Klear® B","2x2.5 Gallon","5% Boron",29.7,"Gallon"]
["PN_KNM-006","Krystal Klear® Ca","2x2.5 Gallon","3% Calcium",29.7,"Gallon"]
["PN_KNM-007","Krystal Klear® Cu","2x2.5 Gallon","5% Copper",49.3,"Gallon"]
["PN_KNM-008","Krystal Klear® Fe","2x2.5 Gallon","4% Iron",41.1,"Gallon"]
["PN_KMS-001","Krystal Klear® Mg","2x2.5 Gallon","3% Magnesium",46.2,"Gallon"]
[{"$f":"IF(B18=\"\",\"\",LEFT(A17,7)&TEXT(RIGHT(A17,3)+1,\"000\"))","v":"PN_KMS-002"},"Krystal Klear® Mn","2x2.5 Gallon","5% Manganese",43.1,"Gallon"]
["PN_KMS-003","Krystal Klear® ResQ","2x2.5 Gallon","8-0-2 with 2% Fe, 0.5% Mg, 0.5% Mn, 0.25% B, Cu, Zn",52.4,"Gallon"]
["PN_KMS-004","Krystal Klear® Turf Mix","2x2.5 Gallon","3% Fe, 1% Mn, 0.25% Cu, 0.25% B",46.7,"Gallon"]
["PN_KMS-005","Krystal Klear® Zn","2x2.5 Gallon","9% Zinc",46.7,"Gallon"]
["PN_KMS-006","LidoQuest® 6-12-12","2x2.5 Gallon","72% SRN and 1% Fe and 0.3% Mn",25.1,"Gallon"]
["PN_KMS-007","LidoQuest® 18-3-6 ","2x2.5 Gallon","50% SRN and 0.01% B, 0.1% Fe and 0.05% Mn ",25.45,"Gallon"]
["PN_KMS-008","LidoQuest® 30-0-0","2x2.5 Gallon","50% SRN",22.65,"Gallon"]
["PN_KMS-009","KaPre® Embella","2x2.5 Gallon","Patented Soil Amendment",66.8,"Gallon"]
["PN_KMS-010","KaPre® ExAlt","2x2.5 Gallon","Soil Surfactant & Fertilizer Additive",108.9,"Gallon"]
["PN_LSF-001","KaPre® KelpPlus","2x2.5 Gallon","Sea Kelp plus 17 Amino Acids and Vitamin C",36.950000000000003,"Gallon"]
[{"$f":"IF(B28=\"\",\"\",LEFT(A27,7)&TEXT(RIGHT(A27,3)+1,\"000\"))","v":"PN_LSF-002"},"KaPre® PhoNix","2x2.5 Gallon","Patented Stress-Fighting Solution",130,"Gallon"]
[{"$f":"IF(B29=\"\",\"\",LEFT(A28,7)&TEXT(RIGHT(A28,3)+1,\"000\"))","v":"PN_LSF-003"},"KaPre® Spectra","2x2.5 Gallon","Concentrated Fulvic Acid Solution",110.1,"Gallon"]
["PN_NEF-001","LidoQuest® FeMn","25 Lb Bag","10% Fe and 3% Mn",9.3000000000000007,"Lb"]
[{"$f":"IF(B31=\"\",\"\",LEFT(A30,7)&TEXT(RIGHT(A30,3)+1,\"000\"))","v":"PN_NEF-002"},"LidoQuest® FeMn&Mg","25 Lb Bag","4.33% Fe, 4.33% Mn and 2% Mg",9.3000000000000007,"Lb"]
[{"$f":"IF(B32=\"\",\"\",LEFT(A31,7)&TEXT(RIGHT(A31,3)+1,\"000\"))","v":"PN_NEF-003"},"NutriSmart®- B  SGN 150","50 Lb Bag","0-0-0 - OMRI Listed Soil Inoculant",0.71,"Lb"]
[{"$f":"IF(B33=\"\",\"\",LEFT(A32,7)&TEXT(RIGHT(A32,3)+1,\"000\"))","v":"PN_NEF-004"},"NutriSmart®- B  SGN 250","50 Lb Bag","0-0-0 - OMRI Listed Soil Inoculant",0.71,"Lb"]
["PN_NPF-001","NutriSmart®- SB  SGN 250*","50 Lb Bag","0-0-0 - OMRI Listed Soil Inoculant",0.59,"Lb"]
[{"$f":"IF(B35=\"\",\"\",LEFT(A34,7)&TEXT(RIGHT(A34,3)+1,\"000\"))","v":"PN_NPF-002"},"NutriSmart 50 WP","25 Lb Bag","0-0-0 - OMRI Listed Soil Inoculant",60,"2.5 Lb"]
["PN_PMP-001","Pennamin® Ca","8x5 Lb","7-0-0 + 14% Ca",15.4,"Lb"]
[{"$f":"IF(B37=\"\",\"\",LEFT(A36,7)&TEXT(RIGHT(A36,3)+1,\"000\"))","v":"PN_PMP-002"},"Pennamin® Ca&Mg","8x5 Lb","8-0-0 + 10% Ca, 8% Mg",14.6,"Lb"]
["PN_PMP-003","Pennamin® Driver - P","8x5 Lb","12-0-0 Water Soluble Amino Acids",16.2,"Lb"]
["PN_PMP-004","Pennamin® Fe&Mn","8x5 Lb","9-0-0+4%Fe+3%Mn - Water Soluble",14.6,"Lb"]
["PN_PMP-005","Pennamin® High-K","8x5 Lb","6-0-15 + 9% Ca - Water Soluble",14.6,"Lb"]
["PN_PMP-006","Pennamin® Mg","8x5 Lb","12-0-0 +12%Mg - Water Soluble ",14.6,"Lb"]
["PN_PMP-007","Pennamin® Perfect-K","8x5 Lb","8-0-9 + 5% Ca, 2% Mg, 0.1% Fe, 0.05% Mn, 0.02% B, 0.02% Zn & 0.01% Cu",16.2,"Lb"]
["PN_PGR-001","Pennamin® Mn","8x5 Lb","10-0-0 + 7% Mn - water soluble",14.6,"Lb"]
[{"$f":"IF(B44=\"\",\"\",LEFT(A43,7)&TEXT(RIGHT(A43,3)+1,\"000\"))","v":"PN_PGR-002"},"Pennamin® Si","8x5 Lb","10-0-0 + 4% Si",19.8,"Lb"]
[{"$f":"IF(B45=\"\",\"\",LEFT(A44,7)&TEXT(RIGHT(A44,3)+1,\"000\"))","v":"PN_PGR-003"},"Nutrol®","8 Lb Bag","Broad Spectrum Fungicide, Fertilizer and Tank Buffer",3.55,"Lb"]
["PN_PFS-001","Prudent® 42cw","2x2.5 Gallon","15-0-0 with 42% PO3  - formulated with urea phosphite",65,"Gallon"]
[{"$f":"IF(B47=\"\",\"\",LEFT(A46,7)&TEXT(RIGHT(A46,3)+1,\"000\"))","v":"PN_PFS-002"},"Prudent® 44","2x2.5 Gallon","15-0-0 with 42-44% PO3  - formulated with urea phosphite",65,"Gallon"]
[{"$f":"IF(B48=\"\",\"\",LEFT(A47,7)&TEXT(RIGHT(A47,3)+1,\"000\"))","v":"PN_PFS-003"},"Agra Rouse®","1 Gallon Bottle","0.05% Cytokinin, 0.05% Gibberellic acid & 0.09% IBA",279.10000000000002,"Gallon"]
[{"$f":"IF(B49=\"\",\"\",LEFT(A48,7)&TEXT(RIGHT(A48,3)+1,\"000\"))","v":"PN_PFS-004"},"Incite®","1 Gallon Bottle","0.09% Cytokinin, 0.05% Gibberellic acid & 0.09% IBA",279.10000000000002,"Gallon"]
[{"$f":"IF(B50=\"\",\"\",LEFT(A49,7)&TEXT(RIGHT(A49,3)+1,\"000\"))","v":"PN_PFS-005"},"Kelpene GPX","2x2.5 Gallon","Kelpene GPX",121,"Gallon"]
[{"$f":"IF(B51=\"\",\"\",LEFT(A50,7)&TEXT(RIGHT(A50,3)+1,\"000\"))","v":"PN_PFS-006"},"Z.one® T&O 250, SGN 150","50 Lb Bag","Patented Soil Conditioner w KaPre® Soil Amendments",1,"Lb"]
["PN_PFS-007","Z.one® VitaSmart, SGN 150","50 Lb Bag","Patented Blend of Z.one® T&O-250 and NutriSmart®-B",1.05,"Lb"]
["PN_PFS-008","Black Sea Kelp","2.5 Gallon","OMRI listed 1-1-17 with 9.87% Humic Acid",30.35,"2.5 Gallon"]
["PN_PFS-009","Fish Hydrolysate","2.5 Gallon","OMRI listed 2-3-1",17.75,"2.5 Gallon"]
["PN_PFS-010","Liquid Humate Plus ","2.5 Gallon","OMRI listed 10.33%  Humic acid ",21.85,"2.5 Gallon"]
["PN_PFS-011","Microbac  ","2.5 Gallon","OMRI listed Mycorrhizal Inoculum",85.75,"2.5 Gallon"]
["PN_PFS-012","VermaPlex ","2.5 Gallon","OMRI Listed Premium Worm Casting Extract ",22,"2.5 Gallon"]
["PN_PFS-013","4-4-2 with 9% Ca ","40 Lb Bag","Greens and fairway grade",1.6,"Lb"]
["PN_PFS-014","Black Castings ","40 Lb Bag","OMRI listed worm castings",0.85,"Lb"]
["PN_PFS-015","Nutri-Cast ","40 Lb Bag","OMRI listed 3-4-2 (worm castings/poultry manure)",1,"Lb"]
["PN_PFS-016","NutriSmart®- B  SGN 150*  ","40 Lb Bag","0-0-0 • OMRI Listed • Soil Innoculant",0.9,"Lb"]
["PN_PFS-017","VermaCompost Standard Grade ","40 Lb Bag",".98-.33-.73",0.46,"Lb"]
["PN_PFS-018","VermaCompost Fine Grade ","40 Lb Bag",".98-.33-.73",0.51,"Lb"]
["PN_PFS-019","VermaMaxx ","40 Lb Bag","OMRI listed 3-4-3 (poultry manure)",1,"Lb"]

{"sheet":"Lebanon","index":6,"n_rows":32,"n_cols":7,"rows_kept":32,"cut":false,"hidden":true,"merged":[]}
[]
[]
[]
[]
[]
[]
[]
["Product ID","Item","Package Size","Description","Price / UOM","UOM","Total"]
["LB_WAP-001","CPR  Premix","2x2.5 Gallon","CPR  Premix Biostimulant 4-0-1",190,"Case"]
[{"$f":"IF(B10=\"\",\"\",LEFT(A9,7)&TEXT(RIGHT(A9,3)+1,\"000\"))","v":"LB_WAP-002"},"CPR  Premix","15 Gallon Drum","CPR  Premix Biostimulant 4-0-1",545,"Drum"]
["LB_WAP-003","PanaSea Plus","2x2.5 Gallon","PanaSea Plus  Seaplant Extract 0-2-2",250,"Case"]
["LB_WAP-004","PanaSea Plus","15 Gallon Drum","PanaSea Plus  Seaplant Extract 0-2-2",600,"Drum"]
["LB_WAP-005","True Foliar N","2x2.5 Gallon","True Foliar N  19-1-6",175,"Case"]
["LB_WAP-006","True Foliar N","15 Gallon Drum","True Foliar N  19-1-6",500,"Drum"]
["LB_WAP-007","True Foliar P","2x2.5 Gallon","True Foliar P  6-12-6",190,"Case"]
["LB_WAP-008","True Foliar P","15 Gallon Drum","True Foliar P  6-12-6",545,"Drum"]
["LB_WAP-009","True Foliar NPK","2x2.5 Gallon","True Foliar NPK  10-3-16",215,"Case"]
["LB_WAP-010","True Foliar NPK","15 Gallon Drum","True Foliar NPK  10-3-16",620,"Drum"]
["LB_WAP-011","True Foliar K","2x2.5 Gallon","True Foliar K  2-0-16",190,"Case"]
["LB_WAP-012","True Foliar K","15 Gallon Drum","True Foliar K  2-0-16",545,"Drum"]
["LB_WAP-013","True Foliar Si","2x2.5 Gallon","True Foliar Si  3-0-10",150,"Case"]
["LB_WAP-014","True Foliar Si","15 Gallon Drum","True Foliar Si  3-0-10",420,"Drum"]
["LB_WAP-015","True Foliar Mg Mn","2x2.5 Gallon","True Foliar Mg Mn  6-0-0",200,"Case"]
["LB_WAP-016","True Foliar Mg Mn","15 Gallon Drum","True Foliar Mg Mn  6-0-0",620,"Drum"]
["LB_WAP-017","Country Club 12 0 24","40 Lb Bag","12 0 24 65% Meth-Ex 1.6% Fe .5% Mg .5% Mn SOP",41,"Bag"]
["LB_WAP-018","Country Club 14 7 14 ","40 Lb Bag","14 7 14 70% Meth-Ex 2% Fe 1.5% Mg 1% Mn SOP",40,"Bag"]
["LB_WAP-019","Country Club 18 3 18","40 Lb Bag","18 3 18 78% Meth-Ex 1.5% Fe .65 Mg .5% Mn SOP",42.5,"Bag"]
["LB_WAP-020","Country Club 8 4 24","50 Lb Bag","8 4 24 64% Meth-Ex 2.4% Fe 2% Mg 1% Mn SOP",38.75,"Bag"]
["LB_WAP-021","Country Club 5-0-20","50 Lb Bag","5-0-20 MethEx w/.067% Acelepry",42.49,"Bag"]
[{"$f":"IF(B30=\"\",\"\",LEFT(#REF!,7)&TEXT(RIGHT(#REF!,3)+1,\"000\"))","v":""}]
[""]
[""]

{"sheet":"Venture Line","index":7,"n_rows":35,"n_cols":7,"rows_kept":35,"cut":false,"hidden":true,"merged":[]}
[]
[]
[]
[]
[]
[]
[]
["Product ID","Item","Package Size","Description","Price / UOM","UOM","Total"]
["VL_WAP-001","GV00142-AME","2 x 2.5 Gallon","Venture CaConditioner (Liquid Gypsum Substitute)",41,"Jug"]
[{"$f":"IF(B10=\"\",\"\",LEFT(A9,7)&TEXT(RIGHT(A9,3)+1,\"000\"))","v":"VL_WAP-002"},"GV00180-AME","265 gal Tote","Venture Ca Conditioner ",18.5,"Gallon"]
["VL_WAP-003","GV00161-AME","2 x 2.5 Gallon","Immerse F Fairway ",75,"Jug"]
["VL_WAP-004","GV00145-AME","275 gal Tote","Immerse F Fairway ",22,"Gallon"]
["VL_WAP-005","GV00172-AME","55 gal Drum","Immerse F Wetting agent",24.27,"Gallon"]
["VL_WAP-006","GV00148-AME","50 LB Bag","Venture Immerse GT Granular",134,"Bag"]
["VL_WAP-007","GV00176-AME","6x8 oz","VG Immerse GT Plus Tablets ",104.6,"Box"]
["VL_WAP-008","GV00135-AME","4 x 1 Gallon","Venture AMS 80/20 Surfactant",17,"Gallon"]
["VL_WAP-009","GV00137-AME","2 x 2.5 Gallon","Venture Cure",200,"Jug"]
["VL_WAP-010","GV00181-AME","30 gal Drum","Venture Cure Fwy ",25.5,"Gallon"]
["VL_WAP-011","GV00143-AME","2 x 2.5 Gallon","Venture Cure Plus",230,"Jug"]
["VL_WAP-012","GV00150-AME","55 gal Drum","Venture Cure Plus ",88.33,"Gal"]
["VL_WAP-013","GV00140-AME","6 x 8 Ounce","Venture Hume Tablets",130,"Box"]
["VL_WAP-014","GV00160-AME","Each","Venture Hume Tablets (10 Lb)",179.2,"Each"]
["VL_WAP-015","GV00141-AME","Each","Venture Applicator",108,"Each"]
["VL_WAP-016","GV00193-AME","2 x 2.5 Gallon","Venture Quench ",206.3,"Jug"]
["VL_WAP-017","GV00134-AME","12 x 1 Quart","Venture Clean Tank Cleaner",100,"Case"]
["VL_WAP-018","GV00139-AME","12 x 1 Quart","Venture Foam Buster",100,"Case"]
["VL_WAP-019","GV00136-AME","4 x 1 Gallon","Venture Green",107,"Gallon"]
["VL_WAP-020","GV00127-AME","55 gal Drum","Venture Green ",100,"Gallon"]
["VL_WAP-021","GV00138-AME","4 x 1 Gallon","Venture Renew",58,"Gallon"]
["VL_WAP-022","GV00173-AME","12 x 1 Quart","Ventures Alert - Tracer Red",214.9,"Case"]
["VL_WAP-023","GV00175-AME","4 x 1 Gallon","VG Rapid Green Turf Paint",56.6,"Gallon"]
["VL_WAP-024","GV00192-AME","12 x 1 Quart","Venture Green ",340,"Case"]
[""]
[""]
[""]

{"sheet":"Brandt","index":8,"n_rows":111,"n_cols":7,"rows_kept":111,"cut":false,"hidden":true,"merged":[]}
[]
[]
[]
[]
[]
[]
[]
["Product ID","Item","Package Size","Description","Price / UOM","UOM","Total"]
["BR_WAP-001","Summer Success Program ","13 Cases","Nutritional Program for Greens",1250,"Kit"]
[{"$f":"IF(B10=\"\",\"\",LEFT(A9,7)&TEXT(RIGHT(A9,3)+1,\"000\"))","v":"BR_WAP-002"},"Mega-Summer Success Program ","16 Cases","Nutritional Program for Greens + iHammer Megalex",1995,"Kit"]
["BR_WAP-003","Winter Success Program","13 Cases","Nutritional Program for Greens",1250,"Kit"]
["BR_WAP-004","Bi-Monthly Success Program","20 Cases","Nutritional Program for Greens",1650,"Kit"]
["BR_WAP-005","Nematode Kit","15 Cases","8 month control for 3 acres",2600,"Kit"]
["BR_WAP-006","Manni Plex Foli-Cal","2x2.5 Gallon","5% N 10% Ca",130.5,"Case"]
["BR_WAP-007","Manni-Plex Cal Mg","2x2.5 Gallon","7% N, 5.3% Ca, 2.6% Mg",117.5,"Case"]
["BR_WAP-008","Manni-Plex Cal Zn","2x2.5 Gallon","6% N, 6% Ca, 35 Zn",132.5,"Case"]
["BR_WAP-009","Manni-Plex Eagle","2x2.5 Gallon","7% N, 14% K2O, 0.5% Mg, 0.5% Fe, 0.25% Mn",162.5,"Case"]
["BR_WAP-010","Manni-Plex Fe","2x2.5 Gallon","5% N, 5% Fe",113,"Case"]
["BR_WAP-011","Manni-Plex Grow","2x2.5 Gallon","12% N, 6% K2O, 0.25% Mg, 0.12% Cu, 1% Fe, 0.25% Mn, 0.25% Zn",152.5,"Case"]
["BR_WAP-012","Manni-Plex K","2x2.5 Gallon","20% K20",144,"Case"]
["BR_WAP-013","Manni-Plex Mg","2x2.5 Gallon","5% N, 4% Mg",114.5,"Case"]
["BR_WAP-014","Manni-Plex Mn","2x2.5 Gallon","7% N, 5% Mn",122,"Case"]
["BR_WAP-015","Manni-Plex Si","2x2.5 Gallon","1% Fe, 10% SiO2",480,"Case"]
["BR_WAP-016","Manni-Plex For Ornamentals","2x2.5 Gallon","5% N, 2.5% B, 1% Fe, 2.5% Mn, 2% Zn",120,"Case"]
["BR_WAP-017","Manni-Plex Root Builder","2x2.5 Gallon","3% N, 0.5% Mg, 0.2% B, 0.05% Cu, 0.9% Mn, 4.7% Zn",152.5,"Case"]
["BR_WAP-018","Manni-Plex Total Turf","2x2.5 Gallon","5% N, 1.2% Mg, 2.85% Fe, 0.45% Mn, 0.65% Zn",162.5,"Case"]
["BR_WAP-019","Manni-Plex Traffic 0-0-6 + Si","2x2.5 Gallon","6% K2O plus 5% Silicon",157.5,"Case"]
["BR_WAP-020","Manni-Plex Ultra Turf","2x2.5 Gallon","4% N, 2% K2O, 0.5% Mg, 0.25% B, 0.5% Cu, 2% Fe, 0.5% Mn, 0.25% Mo",152.5,"Case"]
["BR_WAP-021","Manni-Plex Zn","2x2.5 Gallon","3% N, 7% Zn",144,"Case"]
["BR_WAP-022","Megalex 3-0-0","2x2.5 Gallon","Promotes stronger, healthier greens",250,"Case"]
["BR_WAP-023","Upplause Plus 10-0-0","2x2.5 Gallon","Stress prevention and relief",220,"Case"]
["BR_WAP-024","Advantage MicroPlus 5-0-1","2x2.5 Gallon","Macro and micronutrients",245,"Case"]
["BR_WAP-025","Agra Sol Micro Max","10 lb Bag","5%Mg, 0.5%B, 1.5%Cu, 4%Fe, 4%Mn, 0.1%Mo, 1.5%Zn",26.4,"Bag"]
["BR_WAP-026","Agra Sol Turf Mix","10 lb Bag","4% Mg, 0.5% B, 2% Fe, 2% Mn, 0.5% Zn",33,"Bag"]
["BR_WAP-027","Brandt 20-K","2x2.5 Gallon","Urea plus Potassium Acetate",150,"Case"]
["BR_WAP-028","Brandt 30-K","2x2.5 Gallon","30% K2O",152.5,"Case"]
["BR_WAP-029","Brandt Converge 12-0-12","2x2.5 Gallon","12%N, 12%K, 0.5% Fe, 0.4% Mn",130,"Case"]
["BR_WAP-030","Brandt Converge 18-3-6","2x2.5 Gallon","18% N, 3% P2O5, 6% K2O, 0.05% Cu, 0.1% Fe, 0.05% Mn, Zn (50% SRN)",105,"Case"]
["BR_WAP-031","Brandt Converge 18-0-6","2x2.5 Gallon","18%N, 6%K, 0.05%Cu, 0.1%Fe, 0.05%Mn, 0.05%Zn (50%SRN) ",95,"Case"]
["BR_WAP-032","Brandt Converge SRN","2x2.5 Gallon","30% N (70% SRN)",95,"Case"]
["BR_WAP-033","Brandt Supreme Green","2x2.5 Gallon","12-0-0     0.25% Mg, 5% S, 6% Fe, 2% Mn",105,"Case"]
["BR_WAP-034","Brandt Organiplex 8% Ca","2x2.5 Gallon","8% Ca",199.5,"Case"]
["BR_WAP-035","Brandt Organiplex 3% Mg","2x2.5 Gallon","3% Mg, 0.25% B",199.5,"Case"]
["BR_WAP-036","Brandt Organiplex 4% Mn","2x2.5 Gallon","4% Mn, 0.25% B",199.5,"Case"]
["BR_WAP-037","Brandt Organiplex 6% Zn","2x2.5 Gallon","6% Zn",199.5,"Case"]
["BR_WAP-038","Brandt Organiplex Micro Max","2x2.5 Gallon","2% Fe, 2% Mn, 2% Zn",199.5,"Case"]
["BR_WAP-039","MKS","2x2.5 Gallon","Liquid Sul-Po-Mag",69.5,"Case"]
["BR_WAP-040","MKS","250 Gallon ","Liquid Sul-Po-Mag",3225,"Tote"]
["BR_WAP-041","Sequestar® 3% Ca ","2x2.5 Gallon","3% Ca - EDTA Liquid ",50,"Case"]
["BR_WAP-042","Sequestar® 7.5% Cu ","2x2.5 Gallon","7.5% Cu Solution EDTA Liquid",100,"Case"]
["BR_WAP-043","Sequestar® 4.5% Fe ","2x2.5 Gallon","4.5% Fe - EDTA Liquid",65,"Case"]
["BR_WAP-044","Sequestar 4.5%Fe ","2x2.5 Gallon","4.5%Fe HEDTA Liquid",125,"Case"]
["BR_WAP-045","Sequestar® 2.5 Mg ","2x2.5 Gallon","2.5 Mg Solution EDTA Liquid",51.5,"Case"]
["BR_WAP-046","Sequestar® 5% Mn ","2x2.5 Gallon","5% Mn Solution EDTA Liquid",68,"Case"]
["BR_WAP-047","Sequestar® 9% Zn ","2x2.5 Gallon","9% Zn - EDTA Liquid",68.75,"Case"]
["BR_WAP-048"," Sequestar 9% Ca ","10 X 5lb Case","EDTA Microgranule",225,"Case"]
["BR_WAP-049","Sequestar 14% Cu ","10 X 5lb Case","EDTA Microgranule",300,"Case"]
["BR_WAP-050","Sequestar 6%Fe ","10 X 5lb Case","EDDHA Water Dispersible Granule",425,"Case"]
["BR_WAP-051","Sequestar 11% Fe ","25lb Bag","DTPA Microgranule ",166.25,"Bag"]
["BR_WAP-052","Sequestar 13.2% Fe ","10 X 5lb Case","EDTA Microgranule",219.45,"Case"]
["BR_WAP-053","Sequestar 5.5% Mg","10 X 5lb Case","EDTA Microgranule",350,"Case"]
["BR_WAP-054","Sequestar 13% Mn ","10 X 5lb Case","EDTA Microgranule",245,"Case"]
["BR_WAP-055","Sequestar 14%Zn ","10 X 5lb Case","EDTA Microgranule",245,"Case"]
["BR_WAP-056","Brandt Fungi-Phite","2x2.5 Gallon","EPA registered fungicide",190,"Case"]
["BR_WAP-057","Brandt Liqui-Phi","2x2.5 Gallon","Phosphite fertilizer",162.5,"Case"]
["BR_WAP-058","Brandt Mega-Phi","2x2.5 Gallon","Phosphite fertilizer",340,"Case"]
["BR_WAP-059","Noculate 8-2-8","50lb Bag","Ca0.10%Mg0.50%S5.00%Fe1.00%Mn0.50% Amm. Sul., Methylene Urea",36,"Bag"]
["BR_WAP-060","Noculate 13-4-13","50lb Bag","Fe1.00%Mg1.00%Mn0.50%S4.00% Urea, Methylene Urea",42,"Bag"]
["BR_WAP-061","Noculate 8-3-17","50lb Bag","Ca0.80%Fe4.00%Mg1%   Mn3.10%S6% Urea, Methylene Urea",42,"Bag"]
["BR_WAP-062","Noculate 11-2-11","50lb Bag","Ca0.10%Fe0.50%Mg2.00%S12% Ammonium Sulfate",36,"Bag"]
["BR_WAP-063","Parco 13-2-13 Kym Special","50lb Bag","Ca7.10%Fe1.50%Mg3.2%Mn1.50%s6% Amm. Sul., Methylene Urea",41,"Bag"]
["BR_WAP-064","Brandt Uptake 12","2x2.5 Gallon","12% Humic substances (Leonardite)",101,"Case"]
["BR_WAP-065","Brandt Uptake Advanced","2x2.5 Gallon","8% Humic Acid Devired from Leonardite Ore",127,"Case"]
[{"$f":"IF(B74=\"\",\"\",LEFT(A73,7)&TEXT(RIGHT(A73,3)+1,\"000\"))","v":"BR_WAP-066"},"Leonardite Plus Fine","44lb Bag","80% Humic Acid",1.4,"Lb"]
["BR_WAP-067","Brandt Seaweed Max","2x2.5 Gallon","Seaweed Extra With Humic Acid",292.5,"Case"]
["BR_WAP-068","Brandt In-Cyte","2x2.5 Gallon","3-12-0 plus Humic Acid, Seaweed Extract, Wetting Agent",107.5,"Case"]
["BR_WAP-069","Brandt Parco Root XL","2x2.5 Gallon","1.5% Mg, 4% S, 0.16% B, 3.5% Fe, 0.75% Mn, 0.003% Mo, 0.75% Zn",127.5,"Case"]
["BR_WAP-070","Brandt Plant Start 8-27-2","2x2.5 Gallon","Starter Fertilizer, Seaweed Extract",182.5,"Case"]
["BR_WAP-071","Neo-Tec® SO","2x2.5 Gallon","Parasitic Nematode Control",775,"Case"]
["BR_WAP-072","Neo-Tec® GSO","50lb Bag","Granular Parasitic Nematode Control",100,"Bag"]
["BR_WAP-073","Brandt Nema-Q® (OMRI LISTED)","5 Gallon Pail","8.6% Saponins of Quillaja saponaria",780,"Pail"]
["BR_WAP-074","Brandt Big Foot® ","2x2.5 Gallon","Blue Spray Indicator Dye",255,"Case"]
["BR_WAP-075","Brandt Big Foot® ","4x1 Gallon","Blue Spray Indicator Dye",208,"Case"]
["BR_WAP-076","Brandt Big Foot® SS","12 x 1 quart","Super Strength Blue Indicator Dye",288,"Case"]
["BR_WAP-077","Brandt Big Foot® SS","4x1 Gallon","Super Strength Blue Indicator Dye",336,"Case"]
["BR_WAP-078","Brandt Big Foot® SS","2x2.5 Gallon","Super Strength Blue Indicator Dye",415,"Case"]
["BR_WAP-079","Brandt Big Foot® WSB","1 x 50 Bags","Blue Spray Indicator in Water Soluble Bag",256,"pail"]
["BR_WAP-080","Brandt Mark-It-Red","12x1 Quart","Super Strenght Red; Great for Herbicides",343,"Case"]
["BR_WAP-081","Brandt Green Toes SS","12x1 Quart","Super Strength Green Indicator Dye",306,"Case"]
["BR_WAP-082","Brandt Mean and Green ","2x2.5 Gallon","Extra Dark Grass and Divot Paint",438.5,"Case"]
["BR_WAP-083","Brandt Big Foot Foamy","4x1 Gallon","Foam Indicator Marker",204,"Case"]
["BR_WAP-084","Blue Lagoon® SS","12x1 Quart","Blue Super Strength Pond Colorant",288,"Case"]
["BR_WAP-085","Blue Lagoon®","4x1 Gallon","Blue Pond Colorant",208,"Case"]
["BR_WAP-086","Blue Lagoon® WSB","36 - 1 x 50 case","Blue Pond Colorant",260,"Case"]
["BR_WAP-087","Blue Shadow SS","4x1 Gallon","Blue/Green Super Strength Pond Colorant",344,"Case"]
["BR_WAP-088","Brandt Midnight Blue SS","12x1 Quart","Blue/Black Super Strength Pond Colorant",327.60000000000002,"Case"]
["BR_WAP-089","Bradnt Loch Ness® SS","12x1 Quart","Black Super Strength Pond Colorant",357,"Case"]
["BR_WAP-090","Brandt Defoamer","12x1 Quart","Spray Tank Defoamer",120,"Case"]
["BR_WAP-091","Brandt Indicate 5 ","4x1 Gallon","pH indicater/acidifier, water conditioner",226,"Case"]
["BR_WAP-092","Brandt M.S.O.","2x2.5 Gallon","Premium Modified Vegetable Oil Concentrate",115.7,"Case"]
["BR_WAP-093","Brandt Magnify","2x2.5 Gallon","APE Free Activator/Penetrant/Water Conditioner",150.5,"Case"]
["BR_WAP-094","Brandt Spread It","4x1 Gallon","80/20 Surfactant Sticker",160,"Case"]
["BR_WAP-095","Brandt Super 7","2x2.5 Gallon","APE Free Penetrant/Acidifier/Deposition Acid",178.5,"Case"]
["BR_WAP-096","Brandt 719 Spreader ","4x1 Gallon","(O) Non-ionic penetrant and wetting agent",319.2,"Case"]
["BR_WAP-097","Brandt Super Wetter ","4x1 Gallon","(O) Premium 100% Organosilicone Surfactant",510.8,"Case"]
["BR_WAP-098","Brandt Torpedo","2x2.5 Gallon","Surfactant/Penetrant/Deposition Aid",195,"Case"]
["BR_WAP-099","Brandt Top Coat ","2x2.5 Gallon","Non-Ionic penetrant and wetting agent",427,"Case"]
["BR_WAP-100","Brandt No Foam A  ","2x2.5 Gallon","90% General Purpose NIS",133,"Case"]
["BR_WAP-101","Brandt No Foam B ","2x2.5 Gallon","General Purpose Spreader and Buffer",99.5,"Case"]
["BR_WAP-102","Brandt Umbrella","4x1 Gallon","Spreader/Sticker/Deposition Aid",255.4,"Case"]
["BR_WAP-103","Brandt Odor-Mask","12x1 Quart","(Methyl Salicylate) Pesticide Odor Masking Agen",430,"Case"]

{"sheet":"Earthworks","index":9,"n_rows":35,"n_cols":7,"rows_kept":35,"cut":false,"hidden":true,"merged":[]}
[]
[]
[]
[]
[]
[]
[]
["Product ID","Item","Package Size","Description","Price / UOM","UOM","Total"]
["ZZ_EWP-001","3-4-3  Replenish G.G.","50 Lb Bag","100% organic egg layer poultry compost",17,"Bag"]
[{"$f":"IF(B10=\"\",\"\",LEFT(A9,7)&TEXT(RIGHT(A9,3)+1,\"000\"))","v":"ZZ_EWP-002"},"3-4-3  Replenish G.G.","500 Lb ","100% organic egg layer poultry compost",171.25,"Bag"]
["ZZ_EWP-003","Ecolite soil amendment GG","1000 Lb ","Zeolite mineral soil amendment GG",360,"Bag"]
["ZZ_EWP-004","Ecolite soil amendment GG","50 Lb Bag","Zeolite mineral soil amendment GG",18,"Bag"]
["ZZ_EWP-005","Myco Replenish 3-3-3 GG ","50 Lb Bag","Endo and ecto mycorrhizae fungi",37,"Bag"]
["ZZ_EWP-006","Myco Replenish 3-3-3 GG ","500 Lb Bag","Endo and ecto mycorrhizae fungi",1490,"Ton"]
["ZZ_EWP-007","Renovate Plus 1-0-1 G.G.","1000 Lb ","Endo and ecto mycorrhizae fungi",1550,"Ton"]
["ZZ_EWP-008","Renovate Plus 1-0-1 GG","50 Lb Bag","Blend of carbon and mineral amendments",41,"Bag"]
["ZZ_EWP-009","Replenish 10-2-5 Fairway Grade","50 Lb Bag","50% water insoluble nitrogen fertilizer",32,"Bag"]
["ZZ_EWP-010","Replenish 10-2-5 Fairway Grade","50 Lb Bag","50% water insoluble nitrogen fertilizer",35,"Bag"]
["ZZ_EWP-011","Replenish 5-4-5 GG ","50 Lb Bag","Composted poultry manure",31,"Bag"]
["ZZ_EWP-012","Replenish 8-2-2 ","50 LB Bag","SGN 150 fairway grade",23,"Bag"]
["ZZ_EWP-013","Bio Vantage     ","2x2.5 Gallon","Rhizobacteria",240,"Case"]
["ZZ_EWP-014","Cal-Vantage 6-0-0 (555 Program)","2x2.5 Gallon","Calcium, Nitrogen, Sulfur, and Boron",220,"Case"]
["ZZ_EWP-015","Cal-Vantage 6-0-0 (555 Program)","55 Gallon ","Calcium, Nitrogen, Sulfur, and Boron",2050,"Drum"]
["ZZ_EWP-016","Ecolite soil amendment GG","2000 Lb ","Zeolite mineral soil amendment GG",720,"Ton"]
["ZZ_EWP-017","Kick 0-1-2 ","2x2.5 Gallon","Powerful soil conditioner",220,"Case"]
["ZZ_EWP-018","Mag Vantage      ","2x2.5 Gallon","Photosynthesis Enhancer",117.5,"Case"]
["ZZ_EWP-019","Protien Plus 14-2-5 (555 Program)","2x2.5 Gallon","Kelp Extract, Molasses, Calcium Nitrate",210,"Case"]
["ZZ_EWP-020","Sea 3","55 Gallon ","Sea based nutrients",1980,"Drum"]
["ZZ_EWP-021","Sea 3 ","2x2.5 Gallon","Organic based soil amendment",215,"Case"]
["ZZ_EWP-022","Sea 3    ","275 Gallon ","Sea based nutrients",30.45,"Gallon"]
["ZZ_EWP-023","Trilogy TBS (555 Program)","2x2.5 Gallon","Kelp, Fish tankage and Molasses",230,"Case"]
["ZZ_EWP-024","Trilogy TBS (555 Program)     ","55 Gallon","1-5-5 38% Organic Matter",2085,"Drum"]
[""]
[""]
[""]

{"sheet":"Turf Protection","index":10,"n_rows":69,"n_cols":7,"rows_kept":69,"cut":false,"hidden":true,"merged":[]}
[]
[]
[]
[]
[]
[]
[]
["Product ID","Item","Package Size","Description","Price / UOM","UOM","Total"]
["TP_WAP-001","Proplant","1 Gallon","Banol®",420,"Gallon"]
[{"$f":"IF(B10=\"\",\"\",LEFT(A9,7)&TEXT(RIGHT(A9,3)+1,\"000\"))","v":"TP_WAP-002"},"Iprodione 2F","2x2.5 Gallon","Chipco 26019®",166.7,"Gallon"]
["TP_WAP-003","Fosetyl-Al 80%","11 Lb","Chipco Signature®",19.75,"Pound"]
["TP_WAP-004","Thiophanate Methyl 46.2%","2x2.5 Gallon","Cleary's 3336®",143.33000000000001,"Jug"]
["TP_WAP-005","Chlorothalonil 82.5DF ","2x10 Lb","Daconil Ultrex®",108.87,"Bag"]
["TP_WAP-006","Chlorothalonil 720 ","2x2.5 Gallon","Daconil Weatherstik®",140,"Jug"]
["TP_WAP-007","Manzate Max T&O","2x2.5 Gallon","Dithane®",109,"Jug"]
["TP_WAP-008","Manzate Pro-Stick T&O","48 Lb","Dithane®",5.8,"Pound"]
["TP_WAP-009","Azoxystrobin/Propiconazole","1 Gallon","Headway®",276.64999999999998,"Gallon"]
["TP_WAP-010","Azoxystrobin 50 WDG ","6x1 Lb","Heritage® 50 WDG",185,"Pound"]
["TP_WAP-011","Azoxystrobin 2SC","1 Gallon","Heritage® TL",426.6,"Gallon"]
["TP_WAP-012","Azoxystrobin/Tebuconazole","1 Gallon","PrimeSource™ Exclusive",385,"Gallon"]
["TP_WAP-013","Propiconazole 14.3%","1 Gallon","Spectator™, Banner Maxx® ",66.75,"Gallon"]
["TP_WAP-014","Mefenoxam 22.5%","1 Gallon","Subdue Maxx® ",444.66,"Gallon"]
["TP_WAP-015","Tebuconazole 3.6%","1 Gallon","Torque®",76.7,"Gallon"]
["TP_WAP-016","Prodiamine 4SC ","2x2.5 Gallon","Barricade 4L ®",240.66,"Jug"]
["TP_WAP-017","Prodiamine 65 WDG","6x5 Lb","Barricade 65WDG®",70.67,"Jug"]
["TP_WAP-018","Triad Select™","2x2.5 Gallon","Contains 2,4-D Amine, MCPA, and Dicamba",125,"Case"]
["TP_WAP-019","Dithiopyr 40 WSB","4x5 Oz bag","Dimension Ultra®",63.66,"Bag"]
["TP_WAP-020","Dithiopyr 2L","4x1 Gallon","Dimension® 2EW",219.33,"Gallon"]
["TP_WAP-021","Sulfentrazone 4L ","0.5 Gallon","Dismiss® ",250,"Jug"]
["TP_WAP-022","Quinclorac 1.5L ","0.5 Gallon","Drive XLR8®",53.35,"Jug"]
["TP_WAP-023","Quinclorac 75DF","6x1 Lb","Drive® 75DF",45.3,"Pound"]
["TP_WAP-024","Rometsol","8 Oz","Manor® 60DF",42.6,"Bottle"]
["TP_WAP-025","Monument 75 WG ","5x5 Gram","Monument™",250,"Case"]
["TP_WAP-026","X-Out Select™ ","2x2.5 Gallon","non-Glyphosate alternative - Finale® ",63.3,"Gallon"]
["TP_WAP-027","Pendulum® 3.3 EC ","2x2.5 Gallon","Pendalum® ",90.76,"Jug"]
["TP_WAP-028","Revolver® ","4x1 Quart","Revolver® Sulfanated Urea",318.14999999999998,"Quart"]
["TP_WAP-029","Diquat 2L","2x2.5 Gallon","Reward® ",171.65,"Jug"]
["TP_WAP-030","Oxadiazion 2G","50 Lb","Ronstar®",77.650000000000006,"Bag"]
["TP_WAP-031","Oxadiazion SC","2x2.5 Gallon","Ronstar®",766.2,"Case"]
["TP_WAP-032","Ranger Pro Herb ","2x2.5 Gallon","Round Up",46,"Jug"]
["TP_WAP-033","Ranger Pro Herb ","30 Gallon drum","Round Up",528,"Drum"]
["TP_WAP-034","Halosulfuron-methyl 75%","10x1.33 Gram","Sedgehammer",52.6,"Bottle"]
["TP_WAP-035","Metricor 75 DF","2x10 Lb","Sencor®",22.4,"Pound"]
["TP_WAP-036","T/I 2.5 G","50 Lb","Snapshot®",79.33,"Bag"]
["TP_WAP-037","Tenacity","1 Gallon","Tenacity®",775,"Gallon"]
["TP_WAP-038","Tebuconazole 3.6 F","4x1 Gallon","Torque®",76.7,"Gallon"]
["TP_WAP-039","Abamectin 0.15EC ","4x1 Gallon","Avid® ",200,"Gallon"]
["TP_WAP-040","Fipronil .1G ","50 Lb","Chipco Choice®",148.66,"Bag"]
["TP_WAP-041","Cyper WSP","4x9.5 Gram","Cypermethrin",25.32,"Bag"]
["TP_WAP-042","Sulfentrazone 4 SC","4x64 Oz","Dismiss®",250,"Each"]
["TP_WAP-043","Nemamectin 0.7 SC ","4x1 Gallon","Divanem® nematicide",2200,"Gallon"]
["TP_WAP-044","Todal ","4x1 Gallon","Divanem® nematicide",237.66,"Gallon"]
["TP_WAP-045","Chlorpyrifos 4E","2x2.5 Gallon","Dursban® 4E",150,"Jug"]
["TP_WAP-046","Extinguish Fire Ant Bait","25 Lb","Extinguish Fire Ant Bait",9.1199999999999992,"Pound"]
["TP_WAP-047","Extinguish Fire Ant Bait","8x1.5 Lb","Extinguish Fire Ant Bait",13.35,"Pound"]
["TP_WAP-048","Taurus Trio G","30 pound","Fipronyl/Bifenthrin/Lamda Cyhalothrin",70,"Bag"]
["TP_WAP-049","100 Acre Mole Cricket Pallet","Pallet","Imidacloprid 2F, Bifenthrin G/N & PS804",3100,"Each"]
["TP_WAP-050","50 Acre Mole Cricket Pallet","Pallet","Imidacloprid 2F, Bifenthrin G/N & PS804",1550,"Each"]
["TP_WAP-051","Imidacloprid 0.5G","30 Lb","Merit 0.5G®",26.05,"Bag"]
["TP_WAP-052","Imidacloprid 2F","1 Gallon","Merit 2F, Premise",60,"Gallon"]
["TP_WAP-053","Imidacloprid 75WSB","88x1.6 Oz","Merit 75 WSP",471.86,"Drum"]
["TP_WAP-054","Wasp Freeze®","12x17.5 Oz","Original Formulation",125.28,"Case"]
["TP_WAP-055","Acephate 90 Prill ","8x5 Lb","Orthene®",10,"Pound"]
["TP_WAP-056","Lambda-cyhalothrin 9.7%","1 Gallon","Scimitar®",77.400000000000006,"Gallon"]
["TP_WAP-057","Zelto Bionematicide (2.5 Gal Jug)","2x2.5 Gallon","Prime Source™ Exclusive nematicide",516.6,"Jug"]
["TP_WAP-058","Bifenthrin G/N 7.9F ","1 Gallon","Talstar®",46.7,"Gallon"]
["TP_WAP-059","Fipronil 0.0143G","30 Lb","Top Choice®",54.33,"Bag"]
["TP_WAP-060","Trinexapac-ethyl 12%","2x1 Gallon","Primo Maxx®",140.69999999999999,"Gallon"]
["TP_WAP-061","Trinexapac-ethyl 12%","2.5 Gallon","Primo Maxx®",344.65,"Jug"]

{"sheet":"Adjuvants","index":11,"n_rows":69,"n_cols":7,"rows_kept":69,"cut":false,"hidden":true,"merged":[]}
[]
[]
[]
[]
[]
[]
[]
["Product ID","Item","Package Size","Description","Price / UOM","UOM","Total"]
["AB_WAP-001","80/20 Select™","2 x 2.5 Gallon","80% Nonionic Surfactant",19.7,"Gallon"]
[{"$f":"IF(B10=\"\",\"\",LEFT(A9,7)&TEXT(RIGHT(A9,3)+1,\"000\"))","v":"AB_WAP-002"},"Defoamer Select™","12x1 Quart","Defoamer",160.19999999999999,"Case"]
[{"$f":"IF(B11=\"\",\"\",LEFT(A10,7)&TEXT(RIGHT(A10,3)+1,\"000\"))","v":"AB_WAP-003"},"Duo Stick Select™","2 x 2.5 Gallon","MSO + Organosilicone Blend",88.45,"Jug"]
["AB_WAP-004","Foam Marker Select™","12x1 Quart","Foam Marker",197.14,"Case"]
["AB_WAP-005","Masking Agent Select™","12x1 Quart","Masking Agent (Winter Green)",420,"Case"]
["AB_WAP-006","MSO Select™","2 x 2.5 Gallon","Methylated Seed Oil",64.25,"Jug"]
["AB_WAP-007","PS 804 Select™","2 x 2.5 Gallon","Similar to LI 700®",75,"Jug"]
["AB_WAP-008","Tank Cleaner Select™","12x1 Quart","Tank Cleaner",157.19999999999999,"Case"]
["AB_WAP-009","TPC - Turf Tech Turf Pigment Cleaner ","12x16 Oz","Turf Colorant Cleaner/Remover",144,"Case"]
["AB_WAP-010","Triple Max Select™","4 x 1 Gallon","H20 Conditioner/Acidifer/Surfactant",37.85,"Gallon"]
["AB_WAP-011","Turf Tech MPC","12x16 Oz","Multi-Purpose Cleaner",59,"Case"]
["AB_WAP-012","Turf Tech Tank Wash","2 x 2.5 Gallon","Tank Cleaner",157.19999999999999,"Case"]
["AB_WAP-013","Venture AMS 80/20 Surfactant","4 x 1 Gallon","80% Nonionic Surfactant",17,"Gallon"]
["AB_WAP-014","Venture Clean Tank Cleaner","12 x 1 Quart","Tank Cleaner",120,"Case"]
["AB_WAP-015","Venture Foam Buster","12 x 1 Quart","Defoamer",120,"Case"]
["AB_WAP-016","Venture Foamy ","12 x 1 Quart","Foam Marker",100.25,"Case"]
["AB_WAP-017","Venture Foamy ","4 x 1 Gallon","Foam Marker",104.3,"Gallon"]
["AB_WAP-018","Venture pHase","4 x 1 Gallon","pH Spray Tank Conditioner",22.85,"Gallon"]
["AB_WAP-019","Venture Applicator","Each","Hose End Applicator",108,"Each"]
["AB_WAP-020","Venture Catalyst ","4 x 1 Gallon","Non-Ionic Surfactant with AMS",17,"Gallon"]
["AB_WAP-021","Venture Cure","2 x 2.5 Gallon","30 day Wetting Agent",200,"Jug"]
["AB_WAP-022","Venture Cure ","30 Gallon Drum","30 day Wetting Agent",54.25,"Gallon"]
["AB_WAP-023","Venture Cure ","55 Gallon Drum","30 day Wetting Agent",54.25,"Gallon"]
["AB_WAP-024","Venture Dew Down ","4 x 1 Gallon","Dew Prevention",41.1,"Gallon"]
["AB_WAP-025","Venture Hume Tablets","6 x 8 Ounce","Humic Acid Infused Wetting Tablet",130,"Box"]
["AB_WAP-026","Venture Hume Tablets ","7 Pounds","Humic Acid Infused Wetting Tablet",96.92,"Each"]
["AB_WAP-027","Venture Kelp Tablets ","6 x 8oz Box","Kelp Extract  Infused Wetting Tablet",97.15,"Box"]
["AB_WAP-028","Venture Relief ","2.5 Gallon","Salt Renediation Liquid",153.84,"Jug"]
["AB_WAP-029","Venture Repair Kit","Each","Hose End Applicator Repair",32.29,"Each"]
["AB_WAP-030","Venture Sixty (2.5 Gal Jug)","2.5 Gallon","60 day Wetting Agent",230,"Jug"]
["AB_WAP-031","Venture Sixty (55 Gal Drum)","55 Gallon Drum","60 day Wetting Agent",4858.3,"Drum"]
["AB_WAP-032","Venture Stress Relief Tablets ","6 x 8 Ounce","Amino Acid Infused Wetting Tablet",97.2,"Box"]
["AB_WAP-033","Venture Wet (2.5 Gal Jug)","2.5 Gallon","Multi-Purpose Wetting Agent",75,"Jug"]
["AB_WAP-034","Venture Wet (275 Gal Tote)(Gal)","275 Gallon Tote","Multi-Purpose Wetting Agent",22,"Gallon"]
["AB_WAP-035","Venture Wet (30 Gal Drum)","30 Gallon Drum","Multi-Purpose Wetting Agent",765,"Drum"]
["AB_WAP-036","Venture Wet (55 Gal Drum)","55 Gallon Drum","Multi-Purpose Wetting Agent",1335,"Drum"]
["AB_WAP-037","Venture Wet (7 Lb Tablet)","7 Pounds","Multi-Purpose Wetting Agent",93.85,"Each"]
["AB_WAP-038","Venture Wet Granular (50 Lb Bag)","50 LB Bag","Multi-Purpose Wetting Agent",134,"Bag"]
["AB_WAP-039","Venture Wet Tablets (6x8oz)(Box)","6 x 8 Ounce","Multi-Purpose Wetting Agent",104.6,"Box"]
["AB_WAP-040","Tee Time Select™","1 Gallon","Green Pigment",135.35,"Gallon"]
["AB_WAP-041","Turf Marker Blue SC","1 Gallon","Concentrated Blue Turf marker",56.6,"Gallon"]
["AB_WAP-042","Turf Marker Blue Select™","1 Gallon","Blue Turf Marker",34.5,"Gallon"]
["AB_WAP-043","Turf Marker Blue WSB ","10x2 Oz","Blue Turf Marker",44.6,"Bag"]
["AB_WAP-044","Turf Marker Green Select ™","1 Gallon","Green Turf Marker",37,"Gallon"]
["AB_WAP-045","Venture Green Complete","4 x 1 Gallon","Turf Pigment and Paint Crossover",107,"Gallon"]
["AB_WAP-046","Venture Green Complete","55 Gallon Drum","Turf Pigment and Paint Crossover",100,"Gallon"]
["AB_WAP-047","Venture Renew Brown ","12 x 1 Quart","Pine Straw/Mulch colorant",212.4,"Case"]
["AB_WAP-048","Venture Renew Brown ","2.5 Gallon","Pine Straw/Mulch colorant",145,"Jug"]
["AB_WAP-049","Venture Renew Red ","12 x 1 Quart","Pine Straw/Mulch colorant",212.4,"Case"]
["AB_WAP-050","Venture Renew Red ","2.5 Gallon","Pine Straw/Mulch colorant",145,"Jug"]
["AB_WAP-051","Venture Revitalize","55 Gallon Drum","Turf Pigment",5415.38,"Drum"]
["AB_WAP-052","Venture Revitalize ","30 Gallon Drum","Turf Pigment",2953.85,"Drum"]
["AB_WAP-053","Venture Revitalize ","4 x 1 Gallon","Turf Pigment",90,"Gallon"]
["AB_WAP-054","Venture SPI Green ","4 x 1 Gallon","Green Turf Marker",369.25,"Gallon"]
["AB_WAP-055","Venture TP","4 x 1 Gallon","Premium Turf Paiint",56.6,"Gallon"]
["AB_WAP-056","Ventures Alert - Tracer Blue ","12 x 1 Quart","Spray Pattern Indicator",232.85,"Case"]
["AB_WAP-057","Ventures Alert - Tracer Red","12 x 1 Quart","Spray Pattern Indicator",214.9,"Case"]
["AB_WAP-058","Venture CaConditioner ","2 x 2.5 Gallon","Liquid Gypsum Substitute",46.25,"Jug"]
["AB_WAP-059","Venture Ca Conditioner ","265 Gallon Tote","Liquid Gypsum Substitute",18.5,"Gallon"]
["AB_WAP-060","Aqua Blue Select™","1 Gallon","Blue Pond Dye",32.200000000000003,"Gallon"]
["AB_WAP-061","Aqua Black Select™","1 Gallon","Black Pond Dye",83.3,"Gallon"]